Workbook

Sheet Curve
C5: Futures Forward Curve
C9: Symbol: | D9: CL
C11: Date: | D11: 2012-12-31
C13: Previous Settlement
C15: Real-Time Prices
C27: ©2013 Interactive Data Corporation. All Rights Reserved. | U27: 130605

Sheet Prices
C5: Futures Prices
C7: ©2013 Interactive Data Corporation. All Rights Reserved.
C10: Symbol | E10: Today | I10: Prefix | K10: Suffix | Q10: Date
C11: =Curve!D9 -> CL | E11: =TODAY() -> 2013-06-13 | G11: =FIND("-",C11) ->  | H11: =IF(ISERROR(G11),0,G11) -> 0 | I11: =UPPER(IF(H11>0,LEFT(C11,H11-1),C11)) -> CL | J11: =C11&": "&_xll.ESQuote($I$11&" "&IF(LEN($K$11)>0,H14,G14)&$K$11,"Description") -> CL: LIGHT CRUDE OIL FUTURES | K11: =UPPER(IF(H11=0,"",RIGHT(C11,LEN(C11)-G11+1))) ->  | Q11: =Curve!D11 -> 2012-12-31
C13: # | E13: Contract | G13: MY | H13: YM | J13: Recent | L13: PrevPrice | O13: Mo | Q13: Contract | S13: MY | T13: MYYYY | V13: Futures | X13: Mo
C14: 0 | E14: =DATE(YEAR($E$11),MONTH($E$11)+$C14,1) -> 2013-06-01 | F14: =RIGHT(LEFT("FGHJKMNQUVXZ",MONTH(E14)),1) -> M | G14: =F14&RIGHT(YEAR(E14),IF(YEAR(E14)<2018,1,2)) -> M3 | H14: =RIGHT(G14,LEN(G14)-1)&F14 -> 3M | I14: =_xll.ESQuote($I$11&" "&IF(LEN($K$11)>0,H14,G14)&$K$11,"Recent") ->  | J14: =IF(ISNUMBER(I14),I14,NA()) ->  | K14: =_xll.ESQuote($I$11&" "&IF(LEN($K$11)>0,H14,G14)&$K$11,"PrevPrice") ->  | L14: =IF(ISNUMBER(K14),K14,NA()) ->  | M14: =_xll.ESQuote($I$11&" "&IF(LEN($K$11)>0,H14,G14)&$K$11,"DTE") ->  | N14: =IF(ISNUMBER(M14),M14,NA()) ->  | O14: =IF(AND(ISNUMBER(J14),N14>0),N14/30.5,NA()) ->  | Q14: =DATE(YEAR($Q$11),MONTH($Q$11)+$C14,1) -> 2012-12-01 | R14: =RIGHT(LEFT("FGHJKMNQUVXZ",MONTH(Q14)),1) -> Z | S14: =R14&RIGHT(YEAR(Q14),IF(YEAR(Q14)<2018,1,2)) -> Z2 | T14: =IF(LEN($K$11)>0,YEAR(Q14)&R14,R14&YEAR(Q14)) -> Z2012 | U14: =_xll.ESHistD($I$11&" "&$T14&$K$11,"Last","D",$Q$11) -> 86.67 | V14: =IF(ISNUMBER(U14),U14,NA()) -> 86.67 | W14: =VLOOKUP($I$11&" "&T14&$K$11,Terminations!expchains,2,FALSE)-$Q$11 -> -45 | X14: =IF(AND(ISNUMBER(V14),W14>0),W14/30.5,NA()) -> 
C15: 1 | E15: =DATE(YEAR($E$11),MONTH($E$11)+$C15,1) -> 2013-07-01 | F15: =RIGHT(LEFT("FGHJKMNQUVXZ",MONTH(E15)),1) -> N | G15: =F15&RIGHT(YEAR(E15),IF(YEAR(E15)<2018,1,2)) -> N3 | H15: =RIGHT(G15,LEN(G15)-1)&F15 -> 3N | I15: =_xll.ESQuote($I$11&" "&IF(LEN($K$11)>0,H15,G15)&$K$11,"Recent") -> 96.56 | J15: =IF(ISNUMBER(I15),I15,NA()) -> 96.56 | K15: =_xll.ESQuote($I$11&" "&IF(LEN($K$11)>0,H15,G15)&$K$11,"PrevPrice") -> 95.88 | L15: =IF(ISNUMBER(K15),K15,NA()) -> 95.88 | M15: =_xll.ESQuote($I$11&" "&IF(LEN($K$11)>0,H15,G15)&$K$11,"DTE") -> 7 | N15: =IF(ISNUMBER(M15),M15,NA()) -> 7 | O15: =IF(AND(ISNUMBER(J15),N15>0),N15/30.5,NA()) -> 0.2295081967 | Q15: 2013-01-01 | R15: =RIGHT(LEFT("FGHJKMNQUVXZ",MONTH(Q15)),1) -> F | S15: =R15&RIGHT(YEAR(Q15),IF(YEAR(Q15)<2018,1,2)) -> F3 | T15: F2013 | U15: =_xll.ESHistD($I$11&" "&$T15&$K$11,"Last","D",$Q$11) -> 89.51 | V15: =IF(ISNUMBER(U15),U15,NA()) -> 89.51 | W15: =VLOOKUP($I$11&" "&T15&$K$11,Terminations!expchains,2,FALSE)-$Q$11 -> -12 | X15: =IF(AND(ISNUMBER(V15),W15>0),W15/30.5,NA()) -> 
C16: 2 | E16: 2013-08-01 | F16: Q | G16: Q3 | H16: 3Q | I16: =_xll.ESQuote($I$11&" "&IF(LEN($K$11)>0,H16,G16)&$K$11,"Recent") -> 96.79 | J16: 96.79 | K16: =_xll.ESQuote($I$11&" "&IF(LEN($K$11)>0,H16,G16)&$K$11,"PrevPrice") -> 96.1 | L16: 96.1 | M16: =_xll.ESQuote($I$11&" "&IF(LEN($K$11)>0,H16,G16)&$K$11,"DTE") -> 39 | N16: 39 | O16: 1.278688525 | Q16: 2013-02-01 | R16: G | S16: G3 | T16: G2013 | U16: =_xll.ESHistD($I$11&" "&$T16&$K$11,"Last","D",$Q$11) -> 91.82 | V16: 91.82 | W16: =VLOOKUP($I$11&" "&T16&$K$11,Terminations!expchains,2,FALSE)-$Q$11 -> 22 | X16: 0.7213114754
C17: 3 | E17: 2013-09-01 | F17: U | G17: U3 | H17: 3U | I17: =_xll.ESQuote($I$11&" "&IF(LEN($K$11)>0,H17,G17)&$K$11,"Recent") -> 96.82 | J17: 96.82 | K17: =_xll.ESQuote($I$11&" "&IF(LEN($K$11)>0,H17,G17)&$K$11,"PrevPrice") -> 96.13 | L17: 96.13 | M17: =_xll.ESQuote($I$11&" "&IF(LEN($K$11)>0,H17,G17)&$K$11,"DTE") -> 68 | N17: 68 | O17: 2.229508197 | Q17: 2013-03-01 | R17: H | S17: H3 | T17: H2013 | U17: =_xll.ESHistD($I$11&" "&$T17&$K$11,"Last","D",$Q$11) -> 92.27 | V17: 92.27 | W17: =VLOOKUP($I$11&" "&T17&$K$11,Terminations!expchains,2,FALSE)-$Q$11 -> 51 | X17: 1.672131148
C18: 4 | E18: 2013-10-01 | F18: V | G18: V3 | H18: 3V | I18: =_xll.ESQuote($I$11&" "&IF(LEN($K$11)>0,H18,G18)&$K$11,"Recent") -> 96.51 | J18: 96.51 | K18: =_xll.ESQuote($I$11&" "&IF(LEN($K$11)>0,H18,G18)&$K$11,"PrevPrice") -> 95.85 | L18: 95.85 | M18: =_xll.ESQuote($I$11&" "&IF(LEN($K$11)>0,H18,G18)&$K$11,"DTE") -> 99 | N18: 99 | O18: 3.245901639 | Q18: 2013-04-01 | R18: J | S18: J3 | T18: J2013 | U18: =_xll.ESHistD($I$11&" "&$T18&$K$11,"Last","D",$Q$11) -> 92.73 | V18: 92.73 | W18: =VLOOKUP($I$11&" "&T18&$K$11,Terminations!expchains,2,FALSE)-$Q$11 -> 79 | X18: 2.590163934
C19: 5 | E19: 2013-11-01 | F19: X | G19: X3 | H19: 3X | I19: =_xll.ESQuote($I$11&" "&IF(LEN($K$11)>0,H19,G19)&$K$11,"Recent") -> 95.99 | J19: 95.99 | K19: =_xll.ESQuote($I$11&" "&IF(LEN($K$11)>0,H19,G19)&$K$11,"PrevPrice") -> 95.4 | L19: 95.4 | M19: =_xll.ESQuote($I$11&" "&IF(LEN($K$11)>0,H19,G19)&$K$11,"DTE") -> 131 | N19: 131 | O19: 4.295081967 | Q19: 2013-05-01 | R19: K | S19: K3 | T19: K2013 | U19: =_xll.ESHistD($I$11&" "&$T19&$K$11,"Last","D",$Q$11) -> 93.16 | V19: 93.16 | W19: =VLOOKUP($I$11&" "&T19&$K$11,Terminations!expchains,2,FALSE)-$Q$11 -> 112 | X19: 3.672131148
C20: 6 | E20: 2013-12-01 | F20: Z | G20: Z3 | H20: 3Z | I20: =_xll.ESQuote($I$11&" "&IF(LEN($K$11)>0,H20,G20)&$K$11,"Recent") -> 95.44 | J20: 95.44 | K20: =_xll.ESQuote($I$11&" "&IF(LEN($K$11)>0,H20,G20)&$K$11,"PrevPrice") -> 94.85 | L20: 94.85 | M20: =_xll.ESQuote($I$11&" "&IF(LEN($K$11)>0,H20,G20)&$K$11,"DTE") -> 160 | N20: 160 | O20: 5.245901639 | Q20: 2013-06-01 | R20: M | S20: M3 | T20: M2013 | U20: =_xll.ESHistD($I$11&" "&$T20&$K$11,"Last","D",$Q$11) -> 93.49 | V20: 93.49 | W20: =VLOOKUP($I$11&" "&T20&$K$11,Terminations!expchains,2,FALSE)-$Q$11 -> 141 | X20: 4.62295082
C21: 7 | E21: 2014-01-01 | F21: F | G21: F4 | H21: 4F | I21: =_xll.ESQuote($I$11&" "&IF(LEN($K$11)>0,H21,G21)&$K$11,"Recent") -> 94.84 | J21: 94.84 | K21: =_xll.ESQuote($I$11&" "&IF(LEN($K$11)>0,H21,G21)&$K$11,"PrevPrice") -> 94.31 | L21: 94.31 | M21: =_xll.ESQuote($I$11&" "&IF(LEN($K$11)>0,H21,G21)&$K$11,"DTE") -> 189 | N21: 189 | O21: 6.196721311 | Q21: 2013-07-01 | R21: N | S21: N3 | T21: N2013 | U21: =_xll.ESHistD($I$11&" "&$T21&$K$11,"Last","D",$Q$11) -> 93.7 | V21: 93.7 | W21: =VLOOKUP($I$11&" "&T21&$K$11,Terminations!expchains,2,FALSE)-$Q$11 -> 171 | X21: 5.606557377
C22: 8 | E22: 2014-02-01 | F22: G | G22: G4 | H22: 4G | I22: =_xll.ESQuote($I$11&" "&IF(LEN($K$11)>0,H22,G22)&$K$11,"Recent") -> 94.32 | J22: 94.32 | K22: =_xll.ESQuote($I$11&" "&IF(LEN($K$11)>0,H22,G22)&$K$11,"PrevPrice") -> 93.8 | L22: 93.8 | M22: =_xll.ESQuote($I$11&" "&IF(LEN($K$11)>0,H22,G22)&$K$11,"DTE") -> 222 | N22: 222 | O22: 7.278688525 | Q22: 2013-08-01 | R22: Q | S22: Q3 | T22: Q2013 | U22: =_xll.ESHistD($I$11&" "&$T22&$K$11,"Last","D",$Q$11) -> 93.76 | V22: 93.76 | W22: =VLOOKUP($I$11&" "&T22&$K$11,Terminations!expchains,2,FALSE)-$Q$11 -> 203 | X22: 6.655737705
C23: 9 | E23: 2014-03-01 | F23: H | G23: H4 | H23: 4H | I23: =_xll.ESQuote($I$11&" "&IF(LEN($K$11)>0,H23,G23)&$K$11,"Recent") -> 94.07 | J23: 94.07 | K23: =_xll.ESQuote($I$11&" "&IF(LEN($K$11)>0,H23,G23)&$K$11,"PrevPrice") -> 93.31 | L23: 93.31 | M23: =_xll.ESQuote($I$11&" "&IF(LEN($K$11)>0,H23,G23)&$K$11,"DTE") -> 252 | N23: 252 | O23: 8.262295082 | Q23: 2013-09-01 | R23: U | S23: U3 | T23: U2013 | U23: =_xll.ESHistD($I$11&" "&$T23&$K$11,"Last","D",$Q$11) -> 93.72 | V23: 93.72 | W23: =VLOOKUP($I$11&" "&T23&$K$11,Terminations!expchains,2,FALSE)-$Q$11 -> 232 | X23: 7.606557377
C24: 10 | E24: 2014-04-01 | F24: J | G24: J4 | H24: 4J | I24: =_xll.ESQuote($I$11&" "&IF(LEN($K$11)>0,H24,G24)&$K$11,"Recent") -> 93.58 | J24: 93.58 | K24: =_xll.ESQuote($I$11&" "&IF(LEN($K$11)>0,H24,G24)&$K$11,"PrevPrice") -> 92.83 | L24: 92.83 | M24: =_xll.ESQuote($I$11&" "&IF(LEN($K$11)>0,H24,G24)&$K$11,"DTE") -> 280 | N24: 280 | O24: 9.180327869 | Q24: 2013-10-01 | R24: V | S24: V3 | T24: V2013 | U24: =_xll.ESHistD($I$11&" "&$T24&$K$11,"Last","D",$Q$11) -> 93.6 | V24: 93.6 | W24: =VLOOKUP($I$11&" "&T24&$K$11,Terminations!expchains,2,FALSE)-$Q$11 -> 263 | X24: 8.62295082
C25: 11 | E25: 2014-05-01 | F25: K | G25: K4 | H25: 4K | I25: =_xll.ESQuote($I$11&" "&IF(LEN($K$11)>0,H25,G25)&$K$11,"Recent") -> 93.16 | J25: 93.16 | K25: =_xll.ESQuote($I$11&" "&IF(LEN($K$11)>0,H25,G25)&$K$11,"PrevPrice") -> 92.43 | L25: 92.43 | M25: =_xll.ESQuote($I$11&" "&IF(LEN($K$11)>0,H25,G25)&$K$11,"DTE") -> 313 | N25: 313 | O25: 10.26229508 | Q25: 2013-11-01 | R25: X | S25: X3 | T25: X2013 | U25: =_xll.ESHistD($I$11&" "&$T25&$K$11,"Last","D",$Q$11) -> 93.48 | V25: 93.48 | W25: =VLOOKUP($I$11&" "&T25&$K$11,Terminations!expchains,2,FALSE)-$Q$11 -> 295 | X25: 9.672131148
C26: 12 | E26: 2014-06-01 | F26: M | G26: M4 | H26: 4M | I26: =_xll.ESQuote($I$11&" "&IF(LEN($K$11)>0,H26,G26)&$K$11,"Recent") -> 92.8 | J26: 92.8 | K26: =_xll.ESQuote($I$11&" "&IF(LEN($K$11)>0,H26,G26)&$K$11,"PrevPrice") -> 92.09 | L26: 92.09 | M26: =_xll.ESQuote($I$11&" "&IF(LEN($K$11)>0,H26,G26)&$K$11,"DTE") -> 341 | N26: 341 | O26: 11.18032787 | Q26: 2013-12-01 | R26: Z | S26: Z3 | T26: Z2013 | U26: =_xll.ESHistD($I$11&" "&$T26&$K$11,"Last","D",$Q$11) -> 93.37 | V26: 93.37 | W26: =VLOOKUP($I$11&" "&T26&$K$11,Terminations!expchains,2,FALSE)-$Q$11 -> 324 | X26: 10.62295082
C27: 13 | E27: 2014-07-01 | F27: N | G27: N4 | H27: 4N | I27: =_xll.ESQuote($I$11&" "&IF(LEN($K$11)>0,H27,G27)&$K$11,"Recent") -> 92.42 | J27: 92.42 | K27: =_xll.ESQuote($I$11&" "&IF(LEN($K$11)>0,H27,G27)&$K$11,"PrevPrice") -> 91.73 | L27: 91.73 | M27: =_xll.ESQuote($I$11&" "&IF(LEN($K$11)>0,H27,G27)&$K$11,"DTE") -> 372 | N27: 372 | O27: 12.19672131 | Q27: 2014-01-01 | R27: F | S27: F4 | T27: F2014 | U27: =_xll.ESHistD($I$11&" "&$T27&$K$11,"Last","D",$Q$11) -> 93.19 | V27: 93.19 | W27: =VLOOKUP($I$11&" "&T27&$K$11,Terminations!expchains,2,FALSE)-$Q$11 -> 353 | X27: 11.57377049
C28: 14 | E28: 2014-08-01 | F28: Q | G28: Q4 | H28: 4Q | I28: =_xll.ESQuote($I$11&" "&IF(LEN($K$11)>0,H28,G28)&$K$11,"Recent") -> 92.02 | J28: 92.02 | K28: =_xll.ESQuote($I$11&" "&IF(LEN($K$11)>0,H28,G28)&$K$11,"PrevPrice") -> 91.34 | L28: 91.34 | M28: =_xll.ESQuote($I$11&" "&IF(LEN($K$11)>0,H28,G28)&$K$11,"DTE") -> 404 | N28: 404 | O28: 13.24590164 | Q28: 2014-02-01 | R28: G | S28: G4 | T28: G2014 | U28: =_xll.ESHistD($I$11&" "&$T28&$K$11,"Last","D",$Q$11) -> 93.02 | V28: 93.02 | W28: =VLOOKUP($I$11&" "&T28&$K$11,Terminations!expchains,2,FALSE)-$Q$11 -> 386 | X28: 12.6557377
C29: 15 | E29: 2014-09-01 | F29: U | G29: U4 | H29: 4U | I29: =_xll.ESQuote($I$11&" "&IF(LEN($K$11)>0,H29,G29)&$K$11,"Recent") -> 91.61 | J29: 91.61 | K29: =_xll.ESQuote($I$11&" "&IF(LEN($K$11)>0,H29,G29)&$K$11,"PrevPrice") -> 90.93 | L29: 90.93 | M29: =_xll.ESQuote($I$11&" "&IF(LEN($K$11)>0,H29,G29)&$K$11,"DTE") -> 433 | N29: 433 | O29: 14.19672131 | Q29: 2014-03-01 | R29: H | S29: H4 | T29: H2014 | U29: =_xll.ESHistD($I$11&" "&$T29&$K$11,"Last","D",$Q$11) -> 92.86 | V29: 92.86 | W29: =VLOOKUP($I$11&" "&T29&$K$11,Terminations!expchains,2,FALSE)-$Q$11 -> 416 | X29: 13.63934426
C30: 16 | E30: 2014-10-01 | F30: V | G30: V4 | H30: 4V | I30: =_xll.ESQuote($I$11&" "&IF(LEN($K$11)>0,H30,G30)&$K$11,"Recent") -> 91.23 | J30: 91.23 | K30: =_xll.ESQuote($I$11&" "&IF(LEN($K$11)>0,H30,G30)&$K$11,"PrevPrice") -> 90.56 | L30: 90.56 | M30: =_xll.ESQuote($I$11&" "&IF(LEN($K$11)>0,H30,G30)&$K$11,"DTE") -> 466 | N30: 466 | O30: 15.27868852 | Q30: 2014-04-01 | R30: J | S30: J4 | T30: J2014 | U30: =_xll.ESHistD($I$11&" "&$T30&$K$11,"Last","D",$Q$11) -> 92.72 | V30: 92.72 | W30: =VLOOKUP($I$11&" "&T30&$K$11,Terminations!expchains,2,FALSE)-$Q$11 -> 444 | X30: 14.55737705
C31: 17 | E31: 2014-11-01 | F31: X | G31: X4 | H31: 4X | I31: =_xll.ESQuote($I$11&" "&IF(LEN($K$11)>0,H31,G31)&$K$11,"Recent") -> 90.88 | J31: 90.88 | K31: =_xll.ESQuote($I$11&" "&IF(LEN($K$11)>0,H31,G31)&$K$11,"PrevPrice") -> 90.22 | L31: 90.22 | M31: =_xll.ESQuote($I$11&" "&IF(LEN($K$11)>0,H31,G31)&$K$11,"DTE") -> 495 | N31: 495 | O31: 16.2295082 | Q31: 2014-05-01 | R31: K | S31: K4 | T31: K2014 | U31: =_xll.ESHistD($I$11&" "&$T31&$K$11,"Last","D",$Q$11) -> 92.61 | V31: 92.61 | W31: =VLOOKUP($I$11&" "&T31&$K$11,Terminations!expchains,2,FALSE)-$Q$11 -> 477 | X31: 15.63934426
C32: 18 | E32: 2014-12-01 | F32: Z | G32: Z4 | H32: 4Z | I32: =_xll.ESQuote($I$11&" "&IF(LEN($K$11)>0,H32,G32)&$K$11,"Recent") -> 90.28 | J32: 90.28 | K32: =_xll.ESQuote($I$11&" "&IF(LEN($K$11)>0,H32,G32)&$K$11,"PrevPrice") -> 89.92 | L32: 89.92 | M32: =_xll.ESQuote($I$11&" "&IF(LEN($K$11)>0,H32,G32)&$K$11,"DTE") -> 525 | N32: 525 | O32: 17.21311475 | Q32: 2014-06-01 | R32: M | S32: M4 | T32: M2014 | U32: =_xll.ESHistD($I$11&" "&$T32&$K$11,"Last","D",$Q$11) -> 92.48 | V32: 92.48 | W32: =VLOOKUP($I$11&" "&T32&$K$11,Terminations!expchains,2,FALSE)-$Q$11 -> 505 | X32: 16.55737705
C33: 19 | E33: 2015-01-01 | F33: F | G33: F5 | H33: 5F | I33: =_xll.ESQuote($I$11&" "&IF(LEN($K$11)>0,H33,G33)&$K$11,"Recent") -> 90.12 | J33: 90.12 | K33: =_xll.ESQuote($I$11&" "&IF(LEN($K$11)>0,H33,G33)&$K$11,"PrevPrice") -> 89.5 | L33: 89.5 | M33: =_xll.ESQuote($I$11&" "&IF(LEN($K$11)>0,H33,G33)&$K$11,"DTE") -> 554 | N33: 554 | O33: 18.16393443 | Q33: 2014-07-01 | R33: N | S33: N4 | T33: N2014 | U33: =_xll.ESHistD($I$11&" "&$T33&$K$11,"Last","D",$Q$11) -> 92.27 | V33: 92.27 | W33: =VLOOKUP($I$11&" "&T33&$K$11,Terminations!expchains,2,FALSE)-$Q$11 -> 536 | X33: 17.57377049
C34: 20 | E34: 2015-02-01 | F34: G | G34: G5 | H34: 5G | I34: =_xll.ESQuote($I$11&" "&IF(LEN($K$11)>0,H34,G34)&$K$11,"Recent") -> 89.72 | J34: 89.72 | K34: =_xll.ESQuote($I$11&" "&IF(LEN($K$11)>0,H34,G34)&$K$11,"PrevPrice") -> 89.12 | L34: 89.12 | M34: =_xll.ESQuote($I$11&" "&IF(LEN($K$11)>0,H34,G34)&$K$11,"DTE") -> 586 | N34: 586 | O34: 19.21311475 | Q34: 2014-08-01 | R34: Q | S34: Q4 | T34: Q2014 | U34: =_xll.ESHistD($I$11&" "&$T34&$K$11,"Last","D",$Q$11) -> 92.09 | V34: 92.09 | W34: =VLOOKUP($I$11&" "&T34&$K$11,Terminations!expchains,2,FALSE)-$Q$11 -> 568 | X34: 18.62295082
C35: 21 | E35: 2015-03-01 | F35: H | G35: H5 | H35: 5H | I35: =_xll.ESQuote($I$11&" "&IF(LEN($K$11)>0,H35,G35)&$K$11,"Recent") -> 89.34 | J35: 89.34 | K35: =_xll.ESQuote($I$11&" "&IF(LEN($K$11)>0,H35,G35)&$K$11,"PrevPrice") -> 88.77 | L35: 88.77 | M35: =_xll.ESQuote($I$11&" "&IF(LEN($K$11)>0,H35,G35)&$K$11,"DTE") -> 617 | N35: 617 | O35: 20.2295082 | Q35: 2014-09-01 | R35: U | S35: U4 | T35: U2014 | U35: =_xll.ESHistD($I$11&" "&$T35&$K$11,"Last","D",$Q$11) -> 91.94 | V35: 91.94 | W35: =VLOOKUP($I$11&" "&T35&$K$11,Terminations!expchains,2,FALSE)-$Q$11 -> 597 | X35: 19.57377049
C36: 22 | E36: 2015-04-01 | F36: J | G36: J5 | H36: 5J | I36: =_xll.ESQuote($I$11&" "&IF(LEN($K$11)>0,H36,G36)&$K$11,"Recent") -> 88.99 | J36: 88.99 | K36: =_xll.ESQuote($I$11&" "&IF(LEN($K$11)>0,H36,G36)&$K$11,"PrevPrice") -> 88.44 | L36: 88.44 | M36: =_xll.ESQuote($I$11&" "&IF(LEN($K$11)>0,H36,G36)&$K$11,"DTE") -> 645 | N36: 645 | O36: 21.14754098 | Q36: 2014-10-01 | R36: V | S36: V4 | T36: V2014 | U36: =_xll.ESHistD($I$11&" "&$T36&$K$11,"Last","D",$Q$11) -> 91.81 | V36: 91.81 | W36: =VLOOKUP($I$11&" "&T36&$K$11,Terminations!expchains,2,FALSE)-$Q$11 -> 630 | X36: 20.6557377
C37: 23 | E37: 2015-05-01 | F37: K | G37: K5 | H37: 5K | I37: =_xll.ESQuote($I$11&" "&IF(LEN($K$11)>0,H37,G37)&$K$11,"Recent") -> 88.68 | J37: 88.68 | K37: =_xll.ESQuote($I$11&" "&IF(LEN($K$11)>0,H37,G37)&$K$11,"PrevPrice") -> 88.15 | L37: 88.15 | M37: =_xll.ESQuote($I$11&" "&IF(LEN($K$11)>0,H37,G37)&$K$11,"DTE") -> 677 | N37: 677 | O37: 22.19672131 | Q37: 2014-11-01 | R37: X | S37: X4 | T37: X2014 | U37: =_xll.ESHistD($I$11&" "&$T37&$K$11,"Last","D",$Q$11) -> 91.72 | V37: 91.72 | W37: =VLOOKUP($I$11&" "&T37&$K$11,Terminations!expchains,2,FALSE)-$Q$11 -> 659 | X37: 21.60655738
C38: 24 | E38: 2015-06-01 | F38: M | G38: M5 | H38: 5M | I38: =_xll.ESQuote($I$11&" "&IF(LEN($K$11)>0,H38,G38)&$K$11,"Recent") -> 88.41 | J38: 88.41 | K38: =_xll.ESQuote($I$11&" "&IF(LEN($K$11)>0,H38,G38)&$K$11,"PrevPrice") -> 87.9 | L38: 87.9 | M38: =_xll.ESQuote($I$11&" "&IF(LEN($K$11)>0,H38,G38)&$K$11,"DTE") -> 705 | N38: 705 | O38: 23.1147541 | Q38: 2014-12-01 | R38: Z | S38: Z4 | T38: Z2014 | U38: =_xll.ESHistD($I$11&" "&$T38&$K$11,"Last","D",$Q$11) -> 91.63 | V38: 91.63 | W38: =VLOOKUP($I$11&" "&T38&$K$11,Terminations!expchains,2,FALSE)-$Q$11 -> 689 | X38: 22.59016393
C39: 25 | E39: 2015-07-01 | F39: N | G39: N5 | H39: 5N | I39: =_xll.ESQuote($I$11&" "&IF(LEN($K$11)>0,H39,G39)&$K$11,"Recent") -> 88.1 | J39: 88.1 | K39: =_xll.ESQuote($I$11&" "&IF(LEN($K$11)>0,H39,G39)&$K$11,"PrevPrice") -> 87.61 | L39: 87.61 | M39: =_xll.ESQuote($I$11&" "&IF(LEN($K$11)>0,H39,G39)&$K$11,"DTE") -> 739 | N39: 739 | O39: 24.2295082 | Q39: 2015-01-01 | R39: F | S39: F5 | T39: F2015 | U39: =_xll.ESHistD($I$11&" "&$T39&$K$11,"Last","D",$Q$11) -> 91.36 | V39: 91.36 | W39: =VLOOKUP($I$11&" "&T39&$K$11,Terminations!expchains,2,FALSE)-$Q$11 -> 718 | X39: 23.54098361
C40: 26 | E40: 2015-08-01 | F40: Q | G40: Q5 | H40: 5Q | I40: =_xll.ESQuote($I$11&" "&IF(LEN($K$11)>0,H40,G40)&$K$11,"Recent") -> 87.81 | J40: 87.81 | K40: =_xll.ESQuote($I$11&" "&IF(LEN($K$11)>0,H40,G40)&$K$11,"PrevPrice") -> 87.34 | L40: 87.34 | M40: =_xll.ESQuote($I$11&" "&IF(LEN($K$11)>0,H40,G40)&$K$11,"DTE") -> 768 | N40: 768 | O40: 25.18032787 | Q40: 2015-02-01 | R40: G | S40: G5 | T40: G2015 | U40: =_xll.ESHistD($I$11&" "&$T40&$K$11,"Last","D",$Q$11) -> 91.11 | V40: 91.11 | W40: =VLOOKUP($I$11&" "&T40&$K$11,Terminations!expchains,2,FALSE)-$Q$11 -> 750 | X40: 24.59016393
C41: 27 | E41: 2015-09-01 | F41: U | G41: U5 | H41: 5U | I41: =_xll.ESQuote($I$11&" "&IF(LEN($K$11)>0,H41,G41)&$K$11,"Recent") -> 87.55 | J41: 87.55 | K41: =_xll.ESQuote($I$11&" "&IF(LEN($K$11)>0,H41,G41)&$K$11,"PrevPrice") -> 87.1 | L41: 87.1 | M41: =_xll.ESQuote($I$11&" "&IF(LEN($K$11)>0,H41,G41)&$K$11,"DTE") -> 798 | N41: 798 | O41: 26.16393443 | Q41: 2015-03-01 | R41: H | S41: H5 | T41: H2015 | U41: =_xll.ESHistD($I$11&" "&$T41&$K$11,"Last","D",$Q$11) -> 90.89 | V41: 90.89 | W41: =VLOOKUP($I$11&" "&T41&$K$11,Terminations!expchains,2,FALSE)-$Q$11 -> 781 | X41: 25.60655738
C42: 28 | E42: 2015-10-01 | F42: V | G42: V5 | H42: 5V | I42: =_xll.ESQuote($I$11&" "&IF(LEN($K$11)>0,H42,G42)&$K$11,"Recent") -> 87.33 | J42: 87.33 | K42: =_xll.ESQuote($I$11&" "&IF(LEN($K$11)>0,H42,G42)&$K$11,"PrevPrice") -> 86.9 | L42: 86.9 | M42: =_xll.ESQuote($I$11&" "&IF(LEN($K$11)>0,H42,G42)&$K$11,"DTE") -> 831 | N42: 831 | O42: 27.24590164 | Q42: 2015-04-01 | R42: J | S42: J5 | T42: J2015 | U42: =_xll.ESHistD($I$11&" "&$T42&$K$11,"Last","D",$Q$11) -> 90.68 | V42: 90.68 | W42: =VLOOKUP($I$11&" "&T42&$K$11,Terminations!expchains,2,FALSE)-$Q$11 -> 809 | X42: 26.52459016
C43: 29 | E43: 2015-11-01 | F43: X | G43: X5 | H43: 5X | I43: =_xll.ESQuote($I$11&" "&IF(LEN($K$11)>0,H43,G43)&$K$11,"Recent") -> 87.14 | J43: 87.14 | K43: =_xll.ESQuote($I$11&" "&IF(LEN($K$11)>0,H43,G43)&$K$11,"PrevPrice") -> 86.74 | L43: 86.74 | M43: =_xll.ESQuote($I$11&" "&IF(LEN($K$11)>0,H43,G43)&$K$11,"DTE") -> 859 | N43: 859 | O43: 28.16393443 | Q43: 2015-05-01 | R43: K | S43: K5 | T43: K2015 | U43: =_xll.ESHistD($I$11&" "&$T43&$K$11,"Last","D",$Q$11) -> 90.48 | V43: 90.48 | W43: =VLOOKUP($I$11&" "&T43&$K$11,Terminations!expchains,2,FALSE)-$Q$11 -> 841 | X43: 27.57377049
C44: 30 | E44: 2015-12-01 | F44: Z | G44: Z5 | H44: 5Z | I44: =_xll.ESQuote($I$11&" "&IF(LEN($K$11)>0,H44,G44)&$K$11,"Recent") -> 86.6 | J44: 86.6 | K44: =_xll.ESQuote($I$11&" "&IF(LEN($K$11)>0,H44,G44)&$K$11,"PrevPrice") -> 86.61 | L44: 86.61 | M44: =_xll.ESQuote($I$11&" "&IF(LEN($K$11)>0,H44,G44)&$K$11,"DTE") -> 890 | N44: 890 | O44: 29.18032787 | Q44: 2015-06-01 | R44: M | S44: M5 | T44: M2015 | U44: =_xll.ESHistD($I$11&" "&$T44&$K$11,"Last","D",$Q$11) -> 90.3 | V44: 90.3 | W44: =VLOOKUP($I$11&" "&T44&$K$11,Terminations!expchains,2,FALSE)-$Q$11 -> 869 | X44: 28.49180328
C45: 31 | E45: 2016-01-01 | F45: F | G45: F6 | H45: 6F | I45: =_xll.ESQuote($I$11&" "&IF(LEN($K$11)>0,H45,G45)&$K$11,"Recent") -> 86.74 | J45: 86.74 | K45: =_xll.ESQuote($I$11&" "&IF(LEN($K$11)>0,H45,G45)&$K$11,"PrevPrice") -> 86.38 | L45: 86.38 | M45: =_xll.ESQuote($I$11&" "&IF(LEN($K$11)>0,H45,G45)&$K$11,"DTE") -> 921 | N45: 921 | O45: 30.19672131 | Q45: 2015-07-01 | R45: N | S45: N5 | T45: N2015 | U45: =_xll.ESHistD($I$11&" "&$T45&$K$11,"Last","D",$Q$11) -> 90.1 | V45: 90.1 | W45: =VLOOKUP($I$11&" "&T45&$K$11,Terminations!expchains,2,FALSE)-$Q$11 -> 903 | X45: 29.60655738
C46: 32 | E46: 2016-02-01 | F46: G | G46: G6 | H46: 6G | I46: =_xll.ESQuote($I$11&" "&IF(LEN($K$11)>0,H46,G46)&$K$11,"Recent") -> 86.49 | J46: 86.49 | K46: =_xll.ESQuote($I$11&" "&IF(LEN($K$11)>0,H46,G46)&$K$11,"PrevPrice") -> 86.16 | L46: 86.16 | M46: =_xll.ESQuote($I$11&" "&IF(LEN($K$11)>0,H46,G46)&$K$11,"DTE") -> 951 | N46: 951 | O46: 31.18032787 | Q46: 2015-08-01 | R46: Q | S46: Q5 | T46: Q2015 | U46: =_xll.ESHistD($I$11&" "&$T46&$K$11,"Last","D",$Q$11) -> 89.92 | V46: 89.92 | W46: =VLOOKUP($I$11&" "&T46&$K$11,Terminations!expchains,2,FALSE)-$Q$11 -> 932 | X46: 30.55737705
C47: 33 | E47: 2016-03-01 | F47: H | G47: H6 | H47: 6H | I47: =_xll.ESQuote($I$11&" "&IF(LEN($K$11)>0,H47,G47)&$K$11,"Recent") -> 86.25 | J47: 86.25 | K47: =_xll.ESQuote($I$11&" "&IF(LEN($K$11)>0,H47,G47)&$K$11,"PrevPrice") -> 85.94 | L47: 85.94 | M47: =_xll.ESQuote($I$11&" "&IF(LEN($K$11)>0,H47,G47)&$K$11,"DTE") -> 984 | N47: 984 | O47: 32.26229508 | Q47: 2015-09-01 | R47: U | S47: U5 | T47: U2015 | U47: =_xll.ESHistD($I$11&" "&$T47&$K$11,"Last","D",$Q$11) -> 89.76 | V47: 89.76 | W47: =VLOOKUP($I$11&" "&T47&$K$11,Terminations!expchains,2,FALSE)-$Q$11 -> 962 | X47: 31.54098361
C48: 34 | E48: 2016-04-01 | F48: J | G48: J6 | H48: 6J | I48: =_xll.ESQuote($I$11&" "&IF(LEN($K$11)>0,H48,G48)&$K$11,"Recent") -> 86.02 | J48: 86.02 | K48: =_xll.ESQuote($I$11&" "&IF(LEN($K$11)>0,H48,G48)&$K$11,"PrevPrice") -> 85.74 | L48: 85.74 | M48: =_xll.ESQuote($I$11&" "&IF(LEN($K$11)>0,H48,G48)&$K$11,"DTE") -> 1012 | N48: 1012 | O48: 33.18032787 | Q48: 2015-10-01 | R48: V | S48: V5 | T48: V2015 | U48: =_xll.ESHistD($I$11&" "&$T48&$K$11,"Last","D",$Q$11) -> 89.62 | V48: 89.62 | W48: =VLOOKUP($I$11&" "&T48&$K$11,Terminations!expchains,2,FALSE)-$Q$11 -> 995 | X48: 32.62295082
C49: 35 | E49: 2016-05-01 | F49: K | G49: K6 | H49: 6K | I49: =_xll.ESQuote($I$11&" "&IF(LEN($K$11)>0,H49,G49)&$K$11,"Recent") -> 85.81 | J49: 85.81 | K49: =_xll.ESQuote($I$11&" "&IF(LEN($K$11)>0,H49,G49)&$K$11,"PrevPrice") -> 85.55 | L49: 85.55 | M49: =_xll.ESQuote($I$11&" "&IF(LEN($K$11)>0,H49,G49)&$K$11,"DTE") -> 1042 | N49: 1042 | O49: 34.16393443 | Q49: 2015-11-01 | R49: X | S49: X5 | T49: X2015 | U49: =_xll.ESHistD($I$11&" "&$T49&$K$11,"Last","D",$Q$11) -> 89.49 | V49: 89.49 | W49: =VLOOKUP($I$11&" "&T49&$K$11,Terminations!expchains,2,FALSE)-$Q$11 -> 1023 | X49: 33.54098361
C50: 36 | E50: 2016-06-01 | F50: M | G50: M6 | H50: 6M | I50: =_xll.ESQuote($I$11&" "&IF(LEN($K$11)>0,H50,G50)&$K$11,"Recent") -> 85.61 | J50: 85.61 | K50: =_xll.ESQuote($I$11&" "&IF(LEN($K$11)>0,H50,G50)&$K$11,"PrevPrice") -> 85.38 | L50: 85.38 | M50: =_xll.ESQuote($I$11&" "&IF(LEN($K$11)>0,H50,G50)&$K$11,"DTE") -> 1072 | N50: 1072 | O50: 35.14754098 | Q50: 2015-12-01 | R50: Z | S50: Z5 | T50: Z2015 | U50: =_xll.ESHistD($I$11&" "&$T50&$K$11,"Last","D",$Q$11) -> 89.37 | V50: 89.37 | W50: =VLOOKUP($I$11&" "&T50&$K$11,Terminations!expchains,2,FALSE)-$Q$11 -> 1054 | X50: 34.55737705
C51: 37 | E51: 2016-07-01 | F51: N | G51: N6 | H51: 6N | I51: =_xll.ESQuote($I$11&" "&IF(LEN($K$11)>0,H51,G51)&$K$11,"Recent") -> 85.38 | J51: 85.38 | K51: =_xll.ESQuote($I$11&" "&IF(LEN($K$11)>0,H51,G51)&$K$11,"PrevPrice") -> 85.18 | L51: 85.18 | M51: =_xll.ESQuote($I$11&" "&IF(LEN($K$11)>0,H51,G51)&$K$11,"DTE") -> 1104 | N51: 1104 | O51: 36.19672131 | Q51: 2016-01-01 | R51: F | S51: F6 | T51: F2016 | U51: =_xll.ESHistD($I$11&" "&$T51&$K$11,"Last","D",$Q$11) -> 89.18 | V51: 89.18 | W51: =VLOOKUP($I$11&" "&T51&$K$11,Terminations!expchains,2,FALSE)-$Q$11 -> 1085 | X51: 35.57377049
C52: 38 | E52: 2016-08-01 | F52: Q | G52: Q6 | H52: 6Q | I52: =_xll.ESQuote($I$11&" "&IF(LEN($K$11)>0,H52,G52)&$K$11,"Recent") -> 85.19 | J52: 85.19 | K52: =_xll.ESQuote($I$11&" "&IF(LEN($K$11)>0,H52,G52)&$K$11,"PrevPrice") -> 85.01 | L52: 85.01 | M52: =_xll.ESQuote($I$11&" "&IF(LEN($K$11)>0,H52,G52)&$K$11,"DTE") -> 1133 | N52: 1133 | O52: 37.14754098 | Q52: 2016-02-01 | R52: G | S52: G6 | T52: G2016 | U52: =_xll.ESHistD($I$11&" "&$T52&$K$11,"Last","D",$Q$11) -> 89 | V52: 89 | W52: =VLOOKUP($I$11&" "&T52&$K$11,Terminations!expchains,2,FALSE)-$Q$11 -> 1115 | X52: 36.55737705
C53: 39 | E53: 2016-09-01 | F53: U | G53: U6 | H53: 6U | I53: =_xll.ESQuote($I$11&" "&IF(LEN($K$11)>0,H53,G53)&$K$11,"Recent") -> 85.02 | J53: 85.02 | K53: =_xll.ESQuote($I$11&" "&IF(LEN($K$11)>0,H53,G53)&$K$11,"PrevPrice") -> 84.87 | L53: 84.87 | M53: =_xll.ESQuote($I$11&" "&IF(LEN($K$11)>0,H53,G53)&$K$11,"DTE") -> 1166 | N53: 1166 | O53: 38.2295082 | Q53: 2016-03-01 | R53: H | S53: H6 | T53: H2016 | U53: =_xll.ESHistD($I$11&" "&$T53&$K$11,"Last","D",$Q$11) -> 88.83 | V53: 88.83 | W53: =VLOOKUP($I$11&" "&T53&$K$11,Terminations!expchains,2,FALSE)-$Q$11 -> 1148 | X53: 37.63934426
C54: 40 | E54: 2016-10-01 | F54: V | G54: V6 | H54: 6V | I54: =_xll.ESQuote($I$11&" "&IF(LEN($K$11)>0,H54,G54)&$K$11,"Recent") -> 84.89 | J54: 84.89 | K54: =_xll.ESQuote($I$11&" "&IF(LEN($K$11)>0,H54,G54)&$K$11,"PrevPrice") -> 84.76 | L54: 84.76 | M54: =_xll.ESQuote($I$11&" "&IF(LEN($K$11)>0,H54,G54)&$K$11,"DTE") -> 1195 | N54: 1195 | O54: 39.18032787 | Q54: 2016-04-01 | R54: J | S54: J6 | T54: J2016 | U54: =_xll.ESHistD($I$11&" "&$T54&$K$11,"Last","D",$Q$11) -> 88.66 | V54: 88.66 | W54: =VLOOKUP($I$11&" "&T54&$K$11,Terminations!expchains,2,FALSE)-$Q$11 -> 1176 | X54: 38.55737705
C55: 41 | E55: 2016-11-01 | F55: X | G55: X6 | H55: 6X | I55: =_xll.ESQuote($I$11&" "&IF(LEN($K$11)>0,H55,G55)&$K$11,"Recent") -> 84.78 | J55: 84.78 | K55: =_xll.ESQuote($I$11&" "&IF(LEN($K$11)>0,H55,G55)&$K$11,"PrevPrice") -> 84.68 | L55: 84.68 | M55: =_xll.ESQuote($I$11&" "&IF(LEN($K$11)>0,H55,G55)&$K$11,"DTE") -> 1225 | N55: 1225 | O55: 40.16393443 | Q55: 2016-05-01 | R55: K | S55: K6 | T55: K2016 | U55: =_xll.ESHistD($I$11&" "&$T55&$K$11,"Last","D",$Q$11) -> 88.49 | V55: 88.49 | W55: =VLOOKUP($I$11&" "&T55&$K$11,Terminations!expchains,2,FALSE)-$Q$11 -> 1206 | X55: 39.54098361
C56: 42 | E56: 2016-12-01 | F56: Z | G56: Z6 | H56: 6Z | I56: =_xll.ESQuote($I$11&" "&IF(LEN($K$11)>0,H56,G56)&$K$11,"Recent") -> 84.37 | J56: 84.37 | K56: =_xll.ESQuote($I$11&" "&IF(LEN($K$11)>0,H56,G56)&$K$11,"PrevPrice") -> 84.63 | L56: 84.63 | M56: =_xll.ESQuote($I$11&" "&IF(LEN($K$11)>0,H56,G56)&$K$11,"DTE") -> 1257 | N56: 1257 | O56: 41.21311475 | Q56: 2016-06-01 | R56: M | S56: M6 | T56: M2016 | U56: =_xll.ESHistD($I$11&" "&$T56&$K$11,"Last","D",$Q$11) -> 88.33 | V56: 88.33 | W56: =VLOOKUP($I$11&" "&T56&$K$11,Terminations!expchains,2,FALSE)-$Q$11 -> 1236 | X56: 40.52459016
C57: 43 | E57: 2017-01-01 | F57: F | G57: F7 | H57: 7F | I57: =_xll.ESQuote($I$11&" "&IF(LEN($K$11)>0,H57,G57)&$K$11,"Recent") -> 84.56 | J57: 84.56 | K57: =_xll.ESQuote($I$11&" "&IF(LEN($K$11)>0,H57,G57)&$K$11,"PrevPrice") -> 84.49 | L57: 84.49 | M57: =_xll.ESQuote($I$11&" "&IF(LEN($K$11)>0,H57,G57)&$K$11,"DTE") -> 1286 | N57: 1286 | O57: 42.16393443 | Q57: 2016-07-01 | R57: N | S57: N6 | T57: N2016 | U57: =_xll.ESHistD($I$11&" "&$T57&$K$11,"Last","D",$Q$11) -> 88.18 | V57: 88.18 | W57: =VLOOKUP($I$11&" "&T57&$K$11,Terminations!expchains,2,FALSE)-$Q$11 -> 1268 | X57: 41.57377049
C58: 44 | E58: 2017-02-01 | F58: G | G58: G7 | H58: 7G | I58: =_xll.ESQuote($I$11&" "&IF(LEN($K$11)>0,H58,G58)&$K$11,"Recent") -> 84.42 | J58: 84.42 | K58: =_xll.ESQuote($I$11&" "&IF(LEN($K$11)>0,H58,G58)&$K$11,"PrevPrice") -> 84.37 | L58: 84.37 | M58: =_xll.ESQuote($I$11&" "&IF(LEN($K$11)>0,H58,G58)&$K$11,"DTE") -> 1317 | N58: 1317 | O58: 43.18032787 | Q58: 2016-08-01 | R58: Q | S58: Q6 | T58: Q2016 | U58: =_xll.ESHistD($I$11&" "&$T58&$K$11,"Last","D",$Q$11) -> 88.03 | V58: 88.03 | W58: =VLOOKUP($I$11&" "&T58&$K$11,Terminations!expchains,2,FALSE)-$Q$11 -> 1297 | X58: 42.52459016
C59: 45 | E59: 2017-03-01 | F59: H | G59: H7 | H59: 7H | I59: =_xll.ESQuote($I$11&" "&IF(LEN($K$11)>0,H59,G59)&$K$11,"Recent") -> 84.28 | J59: 84.28 | K59: =_xll.ESQuote($I$11&" "&IF(LEN($K$11)>0,H59,G59)&$K$11,"PrevPrice") -> 84.25 | L59: 84.25 | M59: =_xll.ESQuote($I$11&" "&IF(LEN($K$11)>0,H59,G59)&$K$11,"DTE") -> 1349 | N59: 1349 | O59: 44.2295082 | Q59: 2016-09-01 | R59: U | S59: U6 | T59: U2016 | U59: =_xll.ESHistD($I$11&" "&$T59&$K$11,"Last","D",$Q$11) -> 87.9 | V59: 87.9 | W59: =VLOOKUP($I$11&" "&T59&$K$11,Terminations!expchains,2,FALSE)-$Q$11 -> 1330 | X59: 43.60655738
C60: 46 | E60: 2017-04-01 | F60: J | G60: J7 | H60: 7J | I60: =_xll.ESQuote($I$11&" "&IF(LEN($K$11)>0,H60,G60)&$K$11,"Recent") -> 84.15 | J60: 84.15 | K60: =_xll.ESQuote($I$11&" "&IF(LEN($K$11)>0,H60,G60)&$K$11,"PrevPrice") -> 84.14 | L60: 84.14 | M60: =_xll.ESQuote($I$11&" "&IF(LEN($K$11)>0,H60,G60)&$K$11,"DTE") -> 1377 | N60: 1377 | O60: 45.14754098 | Q60: 2016-10-01 | R60: V | S60: V6 | T60: V2016 | U60: =_xll.ESHistD($I$11&" "&$T60&$K$11,"Last","D",$Q$11) -> 87.77 | V60: 87.77 | W60: =VLOOKUP($I$11&" "&T60&$K$11,Terminations!expchains,2,FALSE)-$Q$11 -> 1359 | X60: 44.55737705
C61: 47 | E61: 2017-05-01 | F61: K | G61: K7 | H61: 7K | I61: =_xll.ESQuote($I$11&" "&IF(LEN($K$11)>0,H61,G61)&$K$11,"Recent") -> 84.05 | J61: 84.05 | K61: =_xll.ESQuote($I$11&" "&IF(LEN($K$11)>0,H61,G61)&$K$11,"PrevPrice") -> 84.05 | L61: 84.05 | M61: =_xll.ESQuote($I$11&" "&IF(LEN($K$11)>0,H61,G61)&$K$11,"DTE") -> 1407 | N61: 1407 | O61: 46.13114754 | Q61: 2016-11-01 | R61: X | S61: X6 | T61: X2016 | U61: =_xll.ESHistD($I$11&" "&$T61&$K$11,"Last","D",$Q$11) -> 87.64 | V61: 87.64 | W61: =VLOOKUP($I$11&" "&T61&$K$11,Terminations!expchains,2,FALSE)-$Q$11 -> 1389 | X61: 45.54098361
C62: 48 | E62: 2017-06-01 | F62: M | G62: M7 | H62: 7M | I62: =_xll.ESQuote($I$11&" "&IF(LEN($K$11)>0,H62,G62)&$K$11,"Recent") -> 83.95 | J62: 83.95 | K62: =_xll.ESQuote($I$11&" "&IF(LEN($K$11)>0,H62,G62)&$K$11,"PrevPrice") -> 83.97 | L62: 83.97 | M62: =_xll.ESQuote($I$11&" "&IF(LEN($K$11)>0,H62,G62)&$K$11,"DTE") -> 1439 | N62: 1439 | O62: 47.18032787 | Q62: 2016-12-01 | R62: Z | S62: Z6 | T62: Z2016 | U62: =_xll.ESHistD($I$11&" "&$T62&$K$11,"Last","D",$Q$11) -> 87.52 | V62: 87.52 | W62: =VLOOKUP($I$11&" "&T62&$K$11,Terminations!expchains,2,FALSE)-$Q$11 -> 1421 | X62: 46.59016393
C63: 49 | E63: 2017-07-01 | F63: N | G63: N7 | H63: 7N | I63: =_xll.ESQuote($I$11&" "&IF(LEN($K$11)>0,H63,G63)&$K$11,"Recent") -> 83.81 | J63: 83.81 | K63: =_xll.ESQuote($I$11&" "&IF(LEN($K$11)>0,H63,G63)&$K$11,"PrevPrice") -> 83.85 | L63: 83.85 | M63: =_xll.ESQuote($I$11&" "&IF(LEN($K$11)>0,H63,G63)&$K$11,"DTE") -> 1468 | N63: 1468 | O63: 48.13114754 | Q63: 2017-01-01 | R63: F | S63: F7 | T63: F2017 | U63: =_xll.ESHistD($I$11&" "&$T63&$K$11,"Last","D",$Q$11) -> 87.4 | V63: 87.4 | W63: =VLOOKUP($I$11&" "&T63&$K$11,Terminations!expchains,2,FALSE)-$Q$11 -> 1450 | X63: 47.54098361
C64: 50 | E64: 2017-08-01 | F64: Q | G64: Q7 | H64: 7Q | I64: =_xll.ESQuote($I$11&" "&IF(LEN($K$11)>0,H64,G64)&$K$11,"Recent") -> 83.71 | J64: 83.71 | K64: =_xll.ESQuote($I$11&" "&IF(LEN($K$11)>0,H64,G64)&$K$11,"PrevPrice") -> 83.76 | L64: 83.76 | M64: =_xll.ESQuote($I$11&" "&IF(LEN($K$11)>0,H64,G64)&$K$11,"DTE") -> 1498 | N64: 1498 | O64: 49.1147541 | Q64: 2017-02-01 | R64: G | S64: G7 | T64: G2017 | U64: =_xll.ESHistD($I$11&" "&$T64&$K$11,"Last","D",$Q$11) -> 87.29 | V64: 87.29 | W64: =VLOOKUP($I$11&" "&T64&$K$11,Terminations!expchains,2,FALSE)-$Q$11 -> 1481 | X64: 48.55737705
C65: 51 | E65: 2017-09-01 | F65: U | G65: U7 | H65: 7U | I65: =_xll.ESQuote($I$11&" "&IF(LEN($K$11)>0,H65,G65)&$K$11,"Recent") -> 83.62 | J65: 83.62 | K65: =_xll.ESQuote($I$11&" "&IF(LEN($K$11)>0,H65,G65)&$K$11,"PrevPrice") -> 83.69 | L65: 83.69 | M65: =_xll.ESQuote($I$11&" "&IF(LEN($K$11)>0,H65,G65)&$K$11,"DTE") -> 1531 | N65: 1531 | O65: 50.19672131 | Q65: 2017-03-01 | R65: H | S65: H7 | T65: H2017 | U65: =_xll.ESHistD($I$11&" "&$T65&$K$11,"Last","D",$Q$11) -> 87.19 | V65: 87.19 | W65: =VLOOKUP($I$11&" "&T65&$K$11,Terminations!expchains,2,FALSE)-$Q$11 -> 1513 | X65: 49.60655738
C66: 52 | E66: 2017-10-01 | F66: V | G66: V7 | H66: 7V | I66: =_xll.ESQuote($I$11&" "&IF(LEN($K$11)>0,H66,G66)&$K$11,"Recent") -> 83.53 | J66: 83.53 | K66: =_xll.ESQuote($I$11&" "&IF(LEN($K$11)>0,H66,G66)&$K$11,"PrevPrice") -> 83.62 | L66: 83.62 | M66: =_xll.ESQuote($I$11&" "&IF(LEN($K$11)>0,H66,G66)&$K$11,"DTE") -> 1560 | N66: 1560 | O66: 51.14754098 | Q66: 2017-04-01 | R66: J | S66: J7 | T66: J2017 | U66: =_xll.ESHistD($I$11&" "&$T66&$K$11,"Last","D",$Q$11) -> 87.09 | V66: 87.09 | W66: =VLOOKUP($I$11&" "&T66&$K$11,Terminations!expchains,2,FALSE)-$Q$11 -> 1541 | X66: 50.52459016
C67: 53 | E67: 2017-11-01 | F67: X | G67: X7 | H67: 7X | I67: =_xll.ESQuote($I$11&" "&IF(LEN($K$11)>0,H67,G67)&$K$11,"Recent") -> 83.46 | J67: 83.46 | K67: =_xll.ESQuote($I$11&" "&IF(LEN($K$11)>0,H67,G67)&$K$11,"PrevPrice") -> 83.57 | L67: 83.57 | M67: =_xll.ESQuote($I$11&" "&IF(LEN($K$11)>0,H67,G67)&$K$11,"DTE") -> 1590 | N67: 1590 | O67: 52.13114754 | Q67: 2017-05-01 | R67: K | S67: K7 | T67: K2017 | U67: =_xll.ESHistD($I$11&" "&$T67&$K$11,"Last","D",$Q$11) -> 86.99 | V67: 86.99 | W67: =VLOOKUP($I$11&" "&T67&$K$11,Terminations!expchains,2,FALSE)-$Q$11 -> 1571 | X67: 51.50819672
C68: 54 | E68: 2017-12-01 | F68: Z | G68: Z7 | H68: 7Z | I68: =_xll.ESQuote($I$11&" "&IF(LEN($K$11)>0,H68,G68)&$K$11,"Recent") -> 83.05 | J68: 83.05 | K68: =_xll.ESQuote($I$11&" "&IF(LEN($K$11)>0,H68,G68)&$K$11,"PrevPrice") -> 83.53 | L68: 83.53 | M68: =_xll.ESQuote($I$11&" "&IF(LEN($K$11)>0,H68,G68)&$K$11,"DTE") -> 1621 | N68: 1621 | O68: 53.14754098 | Q68: 2017-06-01 | R68: M | S68: M7 | T68: M2017 | U68: =_xll.ESHistD($I$11&" "&$T68&$K$11,"Last","D",$Q$11) -> 86.9 | V68: 86.9 | W68: =VLOOKUP($I$11&" "&T68&$K$11,Terminations!expchains,2,FALSE)-$Q$11 -> 1603 | X68: 52.55737705
C69: 55 | E69: 2018-01-01 | F69: F | G69: F18 | H69: 18F | I69: =_xll.ESQuote($I$11&" "&IF(LEN($K$11)>0,H69,G69)&$K$11,"Recent") -> 83.31 | J69: 83.31 | K69: =_xll.ESQuote($I$11&" "&IF(LEN($K$11)>0,H69,G69)&$K$11,"PrevPrice") -> 83.44 | L69: 83.44 | M69: =_xll.ESQuote($I$11&" "&IF(LEN($K$11)>0,H69,G69)&$K$11,"DTE") -> 1650 | N69: 1650 | O69: 54.09836066 | Q69: 2017-07-01 | R69: N | S69: N7 | T69: N2017 | U69: =_xll.ESHistD($I$11&" "&$T69&$K$11,"Last","D",$Q$11) -> 86.81 | V69: 86.81 | W69: =VLOOKUP($I$11&" "&T69&$K$11,Terminations!expchains,2,FALSE)-$Q$11 -> 1632 | X69: 53.50819672
C70: 56 | E70: 2018-02-01 | F70: G | G70: G18 | H70: 18G | I70: =_xll.ESQuote($I$11&" "&IF(LEN($K$11)>0,H70,G70)&$K$11,"Recent") -> 83.21 | J70: 83.21 | K70: =_xll.ESQuote($I$11&" "&IF(LEN($K$11)>0,H70,G70)&$K$11,"PrevPrice") -> 83.35 | L70: 83.35 | M70: =_xll.ESQuote($I$11&" "&IF(LEN($K$11)>0,H70,G70)&$K$11,"DTE") -> 1684 | N70: 1684 | O70: 55.21311475 | Q70: 2017-08-01 | R70: Q | S70: Q7 | T70: Q2017 | U70: =_xll.ESHistD($I$11&" "&$T70&$K$11,"Last","D",$Q$11) -> 86.73 | V70: 86.73 | W70: =VLOOKUP($I$11&" "&T70&$K$11,Terminations!expchains,2,FALSE)-$Q$11 -> 1662 | X70: 54.49180328
C71: 57 | E71: 2018-03-01 | F71: H | G71: H18 | H71: 18H | I71: =_xll.ESQuote($I$11&" "&IF(LEN($K$11)>0,H71,G71)&$K$11,"Recent") -> 83.11 | J71: 83.11 | K71: =_xll.ESQuote($I$11&" "&IF(LEN($K$11)>0,H71,G71)&$K$11,"PrevPrice") -> 83.27 | L71: 83.27 | M71: =_xll.ESQuote($I$11&" "&IF(LEN($K$11)>0,H71,G71)&$K$11,"DTE") -> 1713 | N71: 1713 | O71: 56.16393443 | Q71: 2017-09-01 | R71: U | S71: U7 | T71: U2017 | U71: =_xll.ESHistD($I$11&" "&$T71&$K$11,"Last","D",$Q$11) -> 86.65 | V71: 86.65 | W71: =VLOOKUP($I$11&" "&T71&$K$11,Terminations!expchains,2,FALSE)-$Q$11 -> 1695 | X71: 55.57377049
C72: 58 | E72: 2018-04-01 | F72: J | G72: J18 | H72: 18J | I72: =_xll.ESQuote($I$11&" "&IF(LEN($K$11)>0,H72,G72)&$K$11,"Recent") -> 83.02 | J72: 83.02 | K72: =_xll.ESQuote($I$11&" "&IF(LEN($K$11)>0,H72,G72)&$K$11,"PrevPrice") -> 83.19 | L72: 83.19 | M72: =_xll.ESQuote($I$11&" "&IF(LEN($K$11)>0,H72,G72)&$K$11,"DTE") -> 1741 | N72: 1741 | O72: 57.08196721 | Q72: 2017-10-01 | R72: V | S72: V7 | T72: V2017 | U72: =_xll.ESHistD($I$11&" "&$T72&$K$11,"Last","D",$Q$11) -> 86.57 | V72: 86.57 | W72: =VLOOKUP($I$11&" "&T72&$K$11,Terminations!expchains,2,FALSE)-$Q$11 -> 1724 | X72: 56.52459016
C73: 59 | E73: 2018-05-01 | F73: K | G73: K18 | H73: 18K | I73: =_xll.ESQuote($I$11&" "&IF(LEN($K$11)>0,H73,G73)&$K$11,"Recent") -> 82.94 | J73: 82.94 | K73: =_xll.ESQuote($I$11&" "&IF(LEN($K$11)>0,H73,G73)&$K$11,"PrevPrice") -> 83.12 | L73: 83.12 | M73: =_xll.ESQuote($I$11&" "&IF(LEN($K$11)>0,H73,G73)&$K$11,"DTE") -> 1772 | N73: 1772 | O73: 58.09836066 | Q73: 2017-11-01 | R73: X | S73: X7 | T73: X2017 | U73: =_xll.ESHistD($I$11&" "&$T73&$K$11,"Last","D",$Q$11) -> 86.5 | V73: 86.5 | W73: =VLOOKUP($I$11&" "&T73&$K$11,Terminations!expchains,2,FALSE)-$Q$11 -> 1754 | X73: 57.50819672
C74: 60 | E74: 2018-06-01 | F74: M | G74: M18 | H74: 18M | I74: =_xll.ESQuote($I$11&" "&IF(LEN($K$11)>0,H74,G74)&$K$11,"Recent") -> 82.86 | J74: 82.86 | K74: =_xll.ESQuote($I$11&" "&IF(LEN($K$11)>0,H74,G74)&$K$11,"PrevPrice") -> 83.05 | L74: 83.05 | M74: =_xll.ESQuote($I$11&" "&IF(LEN($K$11)>0,H74,G74)&$K$11,"DTE") -> 1804 | N74: 1804 | O74: 59.14754098 | Q74: 2017-12-01 | R74: Z | S74: Z7 | T74: Z2017 | U74: =_xll.ESHistD($I$11&" "&$T74&$K$11,"Last","D",$Q$11) -> 86.44 | V74: 86.44 | W74: =VLOOKUP($I$11&" "&T74&$K$11,Terminations!expchains,2,FALSE)-$Q$11 -> 1785 | X74: 58.52459016
C75: 61 | E75: 2018-07-01 | F75: N | G75: N18 | H75: 18N | I75: =_xll.ESQuote($I$11&" "&IF(LEN($K$11)>0,H75,G75)&$K$11,"Recent") -> 82.79 | J75: 82.79 | K75: =_xll.ESQuote($I$11&" "&IF(LEN($K$11)>0,H75,G75)&$K$11,"PrevPrice") -> 82.99 | L75: 82.99 | M75: =_xll.ESQuote($I$11&" "&IF(LEN($K$11)>0,H75,G75)&$K$11,"DTE") -> 1833 | N75: 1833 | O75: 60.09836066 | Q75: 2018-01-01 | R75: F | S75: F18 | T75: F2018 | U75: =_xll.ESHistD($I$11&" "&$T75&$K$11,"Last","D",$Q$11) -> 86.37 | V75: 86.37 | W75: =VLOOKUP($I$11&" "&T75&$K$11,Terminations!expchains,2,FALSE)-$Q$11 -> 1814 | X75: 59.47540984
C76: 62 | E76: 2018-08-01 | F76: Q | G76: Q18 | H76: 18Q | I76: =_xll.ESQuote($I$11&" "&IF(LEN($K$11)>0,H76,G76)&$K$11,"Recent") -> 82.72 | J76: 82.72 | K76: =_xll.ESQuote($I$11&" "&IF(LEN($K$11)>0,H76,G76)&$K$11,"PrevPrice") -> 82.93 | L76: 82.93 | M76: =_xll.ESQuote($I$11&" "&IF(LEN($K$11)>0,H76,G76)&$K$11,"DTE") -> 1863 | N76: 1863 | O76: 61.08196721 | Q76: 2018-02-01 | R76: G | S76: G18 | T76: G2018 | U76: =_xll.ESHistD($I$11&" "&$T76&$K$11,"Last","D",$Q$11) -> 86.3 | V76: 86.3 | W76: =VLOOKUP($I$11&" "&T76&$K$11,Terminations!expchains,2,FALSE)-$Q$11 -> 1848 | X76: 60.59016393
C77: 63 | E77: 2018-09-01 | F77: U | G77: U18 | H77: 18U | I77: =_xll.ESQuote($I$11&" "&IF(LEN($K$11)>0,H77,G77)&$K$11,"Recent") -> 82.66 | J77: 82.66 | K77: =_xll.ESQuote($I$11&" "&IF(LEN($K$11)>0,H77,G77)&$K$11,"PrevPrice") -> 82.88 | L77: 82.88 | M77: =_xll.ESQuote($I$11&" "&IF(LEN($K$11)>0,H77,G77)&$K$11,"DTE") -> 1895 | N77: 1895 | O77: 62.13114754 | Q77: 2018-03-01 | R77: H | S77: H18 | T77: H2018 | U77: =_xll.ESHistD($I$11&" "&$T77&$K$11,"Last","D",$Q$11) -> 86.23 | V77: 86.23 | W77: =VLOOKUP($I$11&" "&T77&$K$11,Terminations!expchains,2,FALSE)-$Q$11 -> 1877 | X77: 61.54098361
C78: 64 | E78: 2018-10-01 | F78: V | G78: V18 | H78: 18V | I78: =_xll.ESQuote($I$11&" "&IF(LEN($K$11)>0,H78,G78)&$K$11,"Recent") -> 82.6 | J78: 82.6 | K78: =_xll.ESQuote($I$11&" "&IF(LEN($K$11)>0,H78,G78)&$K$11,"PrevPrice") -> 82.84 | L78: 82.84 | M78: =_xll.ESQuote($I$11&" "&IF(LEN($K$11)>0,H78,G78)&$K$11,"DTE") -> 1925 | N78: 1925 | O78: 63.1147541 | Q78: =DATE(YEAR($Q$11),MONTH($Q$11)+$C78,1) -> 2018-04-01 | R78: J | S78: J18 | T78: =IF(LEN($K$11)>0,YEAR(Q78)&R78,R78&YEAR(Q78)) -> J2018 | U78: =_xll.ESHistD($I$11&" "&$T78&$K$11,"Last","D",$Q$11) -> 86.16 | V78: 86.16 | W78: =VLOOKUP($I$11&" "&T78&$K$11,Terminations!expchains,2,FALSE)-$Q$11 -> 1905 | X78: 62.45901639
C79: 65 | E79: =DATE(YEAR($E$11),MONTH($E$11)+$C79,1) -> 2018-11-01 | F79: =RIGHT(LEFT("FGHJKMNQUVXZ",MONTH(E79)),1) -> X | G79: =F79&RIGHT(YEAR(E79),IF(YEAR(E79)<2018,1,2)) -> X18 | H79: =RIGHT(G79,LEN(G79)-1)&F79 -> 18X | I79: =_xll.ESQuote($I$11&" "&IF(LEN($K$11)>0,H79,G79)&$K$11,"Recent") -> 82.55 | J79: =IF(ISNUMBER(I79),I79,NA()) -> 82.55 | K79: =_xll.ESQuote($I$11&" "&IF(LEN($K$11)>0,H79,G79)&$K$11,"PrevPrice") -> 82.8 | L79: =IF(ISNUMBER(K79),K79,NA()) -> 82.8 | M79: =_xll.ESQuote($I$11&" "&IF(LEN($K$11)>0,H79,G79)&$K$11,"DTE") -> 1957 | N79: =IF(ISNUMBER(M79),M79,NA()) -> 1957 | O79: =IF(AND(ISNUMBER(J79),N79>0),N79/30.5,NA()) -> 64.16393443 | Q79: 2018-05-01 | R79: =RIGHT(LEFT("FGHJKMNQUVXZ",MONTH(Q79)),1) -> K | S79: =R79&RIGHT(YEAR(Q79),IF(YEAR(Q79)<2018,1,2)) -> K18 | T79: K2018 | U79: =_xll.ESHistD($I$11&" "&$T79&$K$11,"Last","D",$Q$11) -> 86.1 | V79: =IF(ISNUMBER(U79),U79,NA()) -> 86.1 | W79: =VLOOKUP($I$11&" "&T79&$K$11,Terminations!expchains,2,FALSE)-$Q$11 -> 1936 | X79: =IF(AND(ISNUMBER(V79),W79>0),W79/30.5,NA()) -> 63.47540984
C80: 66 | E80: 2018-12-01 | F80: Z | G80: Z18 | H80: 18Z | I80: =_xll.ESQuote($I$11&" "&IF(LEN($K$11)>0,H80,G80)&$K$11,"Recent") -> 82.2 | J80: 82.2 | K80: =_xll.ESQuote($I$11&" "&IF(LEN($K$11)>0,H80,G80)&$K$11,"PrevPrice") -> 82.77 | L80: 82.77 | M80: =_xll.ESQuote($I$11&" "&IF(LEN($K$11)>0,H80,G80)&$K$11,"DTE") -> 1985 | N80: 1985 | O80: 65.08196721 | Q80: 2018-06-01 | R80: M | S80: M18 | T80: M2018 | U80: =_xll.ESHistD($I$11&" "&$T80&$K$11,"Last","D",$Q$11) -> 86.04 | V80: 86.04 | W80: =VLOOKUP($I$11&" "&T80&$K$11,Terminations!expchains,2,FALSE)-$Q$11 -> 1968 | X80: 64.52459016
C81: 67 | E81: 2019-01-01 | F81: F | G81: F19 | H81: 19F | I81: =_xll.ESQuote($I$11&" "&IF(LEN($K$11)>0,H81,G81)&$K$11,"Recent") ->  | K81: =_xll.ESQuote($I$11&" "&IF(LEN($K$11)>0,H81,G81)&$K$11,"PrevPrice") ->  | M81: =_xll.ESQuote($I$11&" "&IF(LEN($K$11)>0,H81,G81)&$K$11,"DTE") ->  | Q81: 2018-07-01 | R81: N | S81: N18 | T81: N2018 | U81: =_xll.ESHistD($I$11&" "&$T81&$K$11,"Last","D",$Q$11) -> 85.98 | V81: 85.98 | W81: =VLOOKUP($I$11&" "&T81&$K$11,Terminations!expchains,2,FALSE)-$Q$11 -> 1997 | X81: 65.47540984
C82: 68 | E82: 2019-02-01 | F82: G | G82: G19 | H82: 19G | I82: =_xll.ESQuote($I$11&" "&IF(LEN($K$11)>0,H82,G82)&$K$11,"Recent") ->  | K82: =_xll.ESQuote($I$11&" "&IF(LEN($K$11)>0,H82,G82)&$K$11,"PrevPrice") ->  | M82: =_xll.ESQuote($I$11&" "&IF(LEN($K$11)>0,H82,G82)&$K$11,"DTE") ->  | Q82: 2018-08-01 | R82: Q | S82: Q18 | T82: Q2018 | U82: =_xll.ESHistD($I$11&" "&$T82&$K$11,"Last","D",$Q$11) -> 85.92 | V82: 85.92 | W82: =VLOOKUP($I$11&" "&T82&$K$11,Terminations!expchains,2,FALSE)-$Q$11 -> 2027 | X82: 66.45901639
C83: 69 | E83: 2019-03-01 | F83: H | G83: H19 | H83: 19H | I83: =_xll.ESQuote($I$11&" "&IF(LEN($K$11)>0,H83,G83)&$K$11,"Recent") ->  | K83: =_xll.ESQuote($I$11&" "&IF(LEN($K$11)>0,H83,G83)&$K$11,"PrevPrice") ->  | M83: =_xll.ESQuote($I$11&" "&IF(LEN($K$11)>0,H83,G83)&$K$11,"DTE") ->  | Q83: 2018-09-01 | R83: U | S83: U18 | T83: U2018 | U83: =_xll.ESHistD($I$11&" "&$T83&$K$11,"Last","D",$Q$11) -> 85.86 | V83: 85.86 | W83: =VLOOKUP($I$11&" "&T83&$K$11,Terminations!expchains,2,FALSE)-$Q$11 -> 2059 | X83: 67.50819672
C84: 70 | E84: 2019-04-01 | F84: J | G84: J19 | H84: 19J | I84: =_xll.ESQuote($I$11&" "&IF(LEN($K$11)>0,H84,G84)&$K$11,"Recent") ->  | K84: =_xll.ESQuote($I$11&" "&IF(LEN($K$11)>0,H84,G84)&$K$11,"PrevPrice") ->  | M84: =_xll.ESQuote($I$11&" "&IF(LEN($K$11)>0,H84,G84)&$K$11,"DTE") ->  | Q84: 2018-10-01 | R84: V | S84: V18 | T84: V2018 | U84: =_xll.ESHistD($I$11&" "&$T84&$K$11,"Last","D",$Q$11) -> 85.8 | V84: 85.8 | W84: =VLOOKUP($I$11&" "&T84&$K$11,Terminations!expchains,2,FALSE)-$Q$11 -> 2089 | X84: 68.49180328
C85: 71 | E85: 2019-05-01 | F85: K | G85: K19 | H85: 19K | I85: =_xll.ESQuote($I$11&" "&IF(LEN($K$11)>0,H85,G85)&$K$11,"Recent") ->  | K85: =_xll.ESQuote($I$11&" "&IF(LEN($K$11)>0,H85,G85)&$K$11,"PrevPrice") ->  | M85: =_xll.ESQuote($I$11&" "&IF(LEN($K$11)>0,H85,G85)&$K$11,"DTE") ->  | Q85: 2018-11-01 | R85: X | S85: X18 | T85: X2018 | U85: =_xll.ESHistD($I$11&" "&$T85&$K$11,"Last","D",$Q$11) -> 85.74 | V85: 85.74 | W85: =VLOOKUP($I$11&" "&T85&$K$11,Terminations!expchains,2,FALSE)-$Q$11 -> 2121 | X85: 69.54098361
C86: 72 | E86: 2019-06-01 | F86: M | G86: M19 | H86: 19M | I86: =_xll.ESQuote($I$11&" "&IF(LEN($K$11)>0,H86,G86)&$K$11,"Recent") -> 82.18 | J86: 82.18 | K86: =_xll.ESQuote($I$11&" "&IF(LEN($K$11)>0,H86,G86)&$K$11,"PrevPrice") -> 82.44 | L86: 82.44 | M86: =_xll.ESQuote($I$11&" "&IF(LEN($K$11)>0,H86,G86)&$K$11,"DTE") -> 2168 | N86: 2168 | O86: 71.08196721 | Q86: 2018-12-01 | R86: Z | S86: Z18 | T86: Z2018 | U86: =_xll.ESHistD($I$11&" "&$T86&$K$11,"Last","D",$Q$11) -> 85.68 | V86: 85.68 | W86: =VLOOKUP($I$11&" "&T86&$K$11,Terminations!expchains,2,FALSE)-$Q$11 -> 2149 | X86: 70.45901639
C87: 73 | E87: 2019-07-01 | F87: N | G87: N19 | H87: 19N | I87: =_xll.ESQuote($I$11&" "&IF(LEN($K$11)>0,H87,G87)&$K$11,"Recent") ->  | K87: =_xll.ESQuote($I$11&" "&IF(LEN($K$11)>0,H87,G87)&$K$11,"PrevPrice") ->  | M87: =_xll.ESQuote($I$11&" "&IF(LEN($K$11)>0,H87,G87)&$K$11,"DTE") ->  | Q87: 2019-01-01 | R87: F | S87: F19 | T87: F2019 | U87: =_xll.ESHistD($I$11&" "&$T87&$K$11,"Last","D",$Q$11) ->  | W87: =VLOOKUP($I$11&" "&T87&$K$11,Terminations!expchains,2,FALSE)-$Q$11 -> 
C88: 74 | E88: 2019-08-01 | F88: Q | G88: Q19 | H88: 19Q | I88: =_xll.ESQuote($I$11&" "&IF(LEN($K$11)>0,H88,G88)&$K$11,"Recent") ->  | K88: =_xll.ESQuote($I$11&" "&IF(LEN($K$11)>0,H88,G88)&$K$11,"PrevPrice") ->  | M88: =_xll.ESQuote($I$11&" "&IF(LEN($K$11)>0,H88,G88)&$K$11,"DTE") ->  | Q88: 2019-02-01 | R88: G | S88: G19 | T88: G2019 | U88: =_xll.ESHistD($I$11&" "&$T88&$K$11,"Last","D",$Q$11) ->  | W88: =VLOOKUP($I$11&" "&T88&$K$11,Terminations!expchains,2,FALSE)-$Q$11 -> 
C89: 75 | E89: 2019-09-01 | F89: U | G89: U19 | H89: 19U | I89: =_xll.ESQuote($I$11&" "&IF(LEN($K$11)>0,H89,G89)&$K$11,"Recent") ->  | K89: =_xll.ESQuote($I$11&" "&IF(LEN($K$11)>0,H89,G89)&$K$11,"PrevPrice") ->  | M89: =_xll.ESQuote($I$11&" "&IF(LEN($K$11)>0,H89,G89)&$K$11,"DTE") ->  | Q89: 2019-03-01 | R89: H | S89: H19 | T89: H2019 | U89: =_xll.ESHistD($I$11&" "&$T89&$K$11,"Last","D",$Q$11) ->  | W89: =VLOOKUP($I$11&" "&T89&$K$11,Terminations!expchains,2,FALSE)-$Q$11 -> 
C90: 76 | E90: 2019-10-01 | F90: V | G90: V19 | H90: 19V | I90: =_xll.ESQuote($I$11&" "&IF(LEN($K$11)>0,H90,G90)&$K$11,"Recent") ->  | K90: =_xll.ESQuote($I$11&" "&IF(LEN($K$11)>0,H90,G90)&$K$11,"PrevPrice") ->  | M90: =_xll.ESQuote($I$11&" "&IF(LEN($K$11)>0,H90,G90)&$K$11,"DTE") ->  | Q90: 2019-04-01 | R90: J | S90: J19 | T90: J2019 | U90: =_xll.ESHistD($I$11&" "&$T90&$K$11,"Last","D",$Q$11) ->  | W90: =VLOOKUP($I$11&" "&T90&$K$11,Terminations!expchains,2,FALSE)-$Q$11 -> 
C91: 77 | E91: 2019-11-01 | F91: X | G91: X19 | H91: 19X | I91: =_xll.ESQuote($I$11&" "&IF(LEN($K$11)>0,H91,G91)&$K$11,"Recent") ->  | K91: =_xll.ESQuote($I$11&" "&IF(LEN($K$11)>0,H91,G91)&$K$11,"PrevPrice") ->  | M91: =_xll.ESQuote($I$11&" "&IF(LEN($K$11)>0,H91,G91)&$K$11,"DTE") ->  | Q91: 2019-05-01 | R91: K | S91: K19 | T91: K2019 | U91: =_xll.ESHistD($I$11&" "&$T91&$K$11,"Last","D",$Q$11) ->  | W91: =VLOOKUP($I$11&" "&T91&$K$11,Terminations!expchains,2,FALSE)-$Q$11 -> 
C92: 78 | E92: 2019-12-01 | F92: Z | G92: Z19 | H92: 19Z | I92: =_xll.ESQuote($I$11&" "&IF(LEN($K$11)>0,H92,G92)&$K$11,"Recent") -> 81.7 | J92: 81.7 | K92: =_xll.ESQuote($I$11&" "&IF(LEN($K$11)>0,H92,G92)&$K$11,"PrevPrice") -> 82.12 | L92: 82.12 | M92: =_xll.ESQuote($I$11&" "&IF(LEN($K$11)>0,H92,G92)&$K$11,"DTE") -> 2351 | N92: 2351 | O92: 77.08196721 | Q92: 2019-06-01 | R92: M | S92: M19 | T92: M2019 | U92: =_xll.ESHistD($I$11&" "&$T92&$K$11,"Last","D",$Q$11) -> 85.62 | V92: 85.62 | W92: =VLOOKUP($I$11&" "&T92&$K$11,Terminations!expchains,2,FALSE)-$Q$11 -> 2332 | X92: 76.45901639
C93: 79 | E93: 2020-01-01 | F93: F | G93: F20 | H93: 20F | I93: =_xll.ESQuote($I$11&" "&IF(LEN($K$11)>0,H93,G93)&$K$11,"Recent") ->  | K93: =_xll.ESQuote($I$11&" "&IF(LEN($K$11)>0,H93,G93)&$K$11,"PrevPrice") ->  | M93: =_xll.ESQuote($I$11&" "&IF(LEN($K$11)>0,H93,G93)&$K$11,"DTE") ->  | Q93: 2019-07-01 | R93: N | S93: N19 | T93: N2019 | U93: =_xll.ESHistD($I$11&" "&$T93&$K$11,"Last","D",$Q$11) ->  | W93: =VLOOKUP($I$11&" "&T93&$K$11,Terminations!expchains,2,FALSE)-$Q$11 -> 
C94: 80 | E94: 2020-02-01 | F94: G | G94: G20 | H94: 20G | I94: =_xll.ESQuote($I$11&" "&IF(LEN($K$11)>0,H94,G94)&$K$11,"Recent") ->  | K94: =_xll.ESQuote($I$11&" "&IF(LEN($K$11)>0,H94,G94)&$K$11,"PrevPrice") ->  | M94: =_xll.ESQuote($I$11&" "&IF(LEN($K$11)>0,H94,G94)&$K$11,"DTE") ->  | Q94: 2019-08-01 | R94: Q | S94: Q19 | T94: Q2019 | U94: =_xll.ESHistD($I$11&" "&$T94&$K$11,"Last","D",$Q$11) ->  | W94: =VLOOKUP($I$11&" "&T94&$K$11,Terminations!expchains,2,FALSE)-$Q$11 -> 
C95: 81 | E95: 2020-03-01 | F95: H | G95: H20 | H95: 20H | I95: =_xll.ESQuote($I$11&" "&IF(LEN($K$11)>0,H95,G95)&$K$11,"Recent") ->  | K95: =_xll.ESQuote($I$11&" "&IF(LEN($K$11)>0,H95,G95)&$K$11,"PrevPrice") ->  | M95: =_xll.ESQuote($I$11&" "&IF(LEN($K$11)>0,H95,G95)&$K$11,"DTE") ->  | Q95: 2019-09-01 | R95: U | S95: U19 | T95: U2019 | U95: =_xll.ESHistD($I$11&" "&$T95&$K$11,"Last","D",$Q$11) ->  | W95: =VLOOKUP($I$11&" "&T95&$K$11,Terminations!expchains,2,FALSE)-$Q$11 -> 
C96: 82 | E96: 2020-04-01 | F96: J | G96: J20 | H96: 20J | I96: =_xll.ESQuote($I$11&" "&IF(LEN($K$11)>0,H96,G96)&$K$11,"Recent") ->  | K96: =_xll.ESQuote($I$11&" "&IF(LEN($K$11)>0,H96,G96)&$K$11,"PrevPrice") ->  | M96: =_xll.ESQuote($I$11&" "&IF(LEN($K$11)>0,H96,G96)&$K$11,"DTE") ->  | Q96: 2019-10-01 | R96: V | S96: V19 | T96: V2019 | U96: =_xll.ESHistD($I$11&" "&$T96&$K$11,"Last","D",$Q$11) ->  | W96: =VLOOKUP($I$11&" "&T96&$K$11,Terminations!expchains,2,FALSE)-$Q$11 -> 
C97: 83 | E97: 2020-05-01 | F97: K | G97: K20 | H97: 20K | I97: =_xll.ESQuote($I$11&" "&IF(LEN($K$11)>0,H97,G97)&$K$11,"Recent") ->  | K97: =_xll.ESQuote($I$11&" "&IF(LEN($K$11)>0,H97,G97)&$K$11,"PrevPrice") ->  | M97: =_xll.ESQuote($I$11&" "&IF(LEN($K$11)>0,H97,G97)&$K$11,"DTE") ->  | Q97: 2019-11-01 | R97: X | S97: X19 | T97: X2019 | U97: =_xll.ESHistD($I$11&" "&$T97&$K$11,"Last","D",$Q$11) ->  | W97: =VLOOKUP($I$11&" "&T97&$K$11,Terminations!expchains,2,FALSE)-$Q$11 -> 
C98: 84 | E98: 2020-06-01 | F98: M | G98: M20 | H98: 20M | I98: =_xll.ESQuote($I$11&" "&IF(LEN($K$11)>0,H98,G98)&$K$11,"Recent") -> 81.58 | J98: 81.58 | K98: =_xll.ESQuote($I$11&" "&IF(LEN($K$11)>0,H98,G98)&$K$11,"PrevPrice") -> 81.84 | L98: 81.84 | M98: =_xll.ESQuote($I$11&" "&IF(LEN($K$11)>0,H98,G98)&$K$11,"DTE") -> 2532 | N98: 2532 | O98: 83.01639344 | Q98: 2019-12-01 | R98: Z | S98: Z19 | T98: Z2019 | U98: =_xll.ESHistD($I$11&" "&$T98&$K$11,"Last","D",$Q$11) -> 85.55 | V98: 85.55 | W98: =VLOOKUP($I$11&" "&T98&$K$11,Terminations!expchains,2,FALSE)-$Q$11 -> 2515 | X98: 82.45901639
C99: 85 | E99: 2020-07-01 | F99: N | G99: N20 | H99: 20N | I99: =_xll.ESQuote($I$11&" "&IF(LEN($K$11)>0,H99,G99)&$K$11,"Recent") ->  | K99: =_xll.ESQuote($I$11&" "&IF(LEN($K$11)>0,H99,G99)&$K$11,"PrevPrice") ->  | M99: =_xll.ESQuote($I$11&" "&IF(LEN($K$11)>0,H99,G99)&$K$11,"DTE") ->  | Q99: 2020-01-01 | R99: F | S99: F20 | T99: F2020 | U99: =_xll.ESHistD($I$11&" "&$T99&$K$11,"Last","D",$Q$11) ->  | W99: =VLOOKUP($I$11&" "&T99&$K$11,Terminations!expchains,2,FALSE)-$Q$11 -> 
C100: 86 | E100: 2020-08-01 | F100: Q | G100: Q20 | H100: 20Q | I100: =_xll.ESQuote($I$11&" "&IF(LEN($K$11)>0,H100,G100)&$K$11,"Recent") ->  | K100: =_xll.ESQuote($I$11&" "&IF(LEN($K$11)>0,H100,G100)&$K$11,"PrevPrice") ->  | M100: =_xll.ESQuote($I$11&" "&IF(LEN($K$11)>0,H100,G100)&$K$11,"DTE") ->  | Q100: 2020-02-01 | R100: G | S100: G20 | T100: G2020 | U100: =_xll.ESHistD($I$11&" "&$T100&$K$11,"Last","D",$Q$11) ->  | W100: =VLOOKUP($I$11&" "&T100&$K$11,Terminations!expchains,2,FALSE)-$Q$11 -> 
C101: 87 | E101: 2020-09-01 | F101: U | G101: U20 | H101: 20U | I101: =_xll.ESQuote($I$11&" "&IF(LEN($K$11)>0,H101,G101)&$K$11,"Recent") ->  | K101: =_xll.ESQuote($I$11&" "&IF(LEN($K$11)>0,H101,G101)&$K$11,"PrevPrice") ->  | M101: =_xll.ESQuote($I$11&" "&IF(LEN($K$11)>0,H101,G101)&$K$11,"DTE") ->  | Q101: 2020-03-01 | R101: H | S101: H20 | T101: H2020 | U101: =_xll.ESHistD($I$11&" "&$T101&$K$11,"Last","D",$Q$11) ->  | W101: =VLOOKUP($I$11&" "&T101&$K$11,Terminations!expchains,2,FALSE)-$Q$11 -> 
C102: 88 | E102: 2020-10-01 | F102: V | G102: V20 | H102: 20V | I102: =_xll.ESQuote($I$11&" "&IF(LEN($K$11)>0,H102,G102)&$K$11,"Recent") ->  | K102: =_xll.ESQuote($I$11&" "&IF(LEN($K$11)>0,H102,G102)&$K$11,"PrevPrice") ->  | M102: =_xll.ESQuote($I$11&" "&IF(LEN($K$11)>0,H102,G102)&$K$11,"DTE") ->  | Q102: 2020-04-01 | R102: J | S102: J20 | T102: J2020 | U102: =_xll.ESHistD($I$11&" "&$T102&$K$11,"Last","D",$Q$11) ->  | W102: =VLOOKUP($I$11&" "&T102&$K$11,Terminations!expchains,2,FALSE)-$Q$11 -> 
C103: 89 | E103: 2020-11-01 | F103: X | G103: X20 | H103: 20X | I103: =_xll.ESQuote($I$11&" "&IF(LEN($K$11)>0,H103,G103)&$K$11,"Recent") ->  | K103: =_xll.ESQuote($I$11&" "&IF(LEN($K$11)>0,H103,G103)&$K$11,"PrevPrice") ->  | M103: =_xll.ESQuote($I$11&" "&IF(LEN($K$11)>0,H103,G103)&$K$11,"DTE") ->  | Q103: 2020-05-01 | R103: K | S103: K20 | T103: K2020 | U103: =_xll.ESHistD($I$11&" "&$T103&$K$11,"Last","D",$Q$11) ->  | W103: =VLOOKUP($I$11&" "&T103&$K$11,Terminations!expchains,2,FALSE)-$Q$11 -> 
C104: 90 | E104: 2020-12-01 | F104: Z | G104: Z20 | H104: 20Z | I104: =_xll.ESQuote($I$11&" "&IF(LEN($K$11)>0,H104,G104)&$K$11,"Recent") -> 81.31 | J104: 81.31 | K104: =_xll.ESQuote($I$11&" "&IF(LEN($K$11)>0,H104,G104)&$K$11,"PrevPrice") -> 81.57 | L104: 81.57 | M104: =_xll.ESQuote($I$11&" "&IF(LEN($K$11)>0,H104,G104)&$K$11,"DTE") -> 2717 | N104: 2717 | O104: 89.08196721 | Q104: 2020-06-01 | R104: M | S104: M20 | T104: M2020 | U104: =_xll.ESHistD($I$11&" "&$T104&$K$11,"Last","D",$Q$11) -> 85.5 | V104: 85.5 | W104: =VLOOKUP($I$11&" "&T104&$K$11,Terminations!expchains,2,FALSE)-$Q$11 -> 2696 | X104: 88.39344262
C105: 91 | E105: 2021-01-01 | F105: F | G105: F21 | H105: 21F | I105: =_xll.ESQuote($I$11&" "&IF(LEN($K$11)>0,H105,G105)&$K$11,"Recent") ->  | K105: =_xll.ESQuote($I$11&" "&IF(LEN($K$11)>0,H105,G105)&$K$11,"PrevPrice") ->  | M105: =_xll.ESQuote($I$11&" "&IF(LEN($K$11)>0,H105,G105)&$K$11,"DTE") ->  | Q105: 2020-07-01 | R105: N | S105: N20 | T105: N2020 | U105: =_xll.ESHistD($I$11&" "&$T105&$K$11,"Last","D",$Q$11) ->  | W105: =VLOOKUP($I$11&" "&T105&$K$11,Terminations!expchains,2,FALSE)-$Q$11 -> 
C106: 92 | E106: 2021-02-01 | F106: G | G106: G21 | H106: 21G | I106: =_xll.ESQuote($I$11&" "&IF(LEN($K$11)>0,H106,G106)&$K$11,"Recent") ->  | K106: =_xll.ESQuote($I$11&" "&IF(LEN($K$11)>0,H106,G106)&$K$11,"PrevPrice") ->  | M106: =_xll.ESQuote($I$11&" "&IF(LEN($K$11)>0,H106,G106)&$K$11,"DTE") ->  | Q106: 2020-08-01 | R106: Q | S106: Q20 | T106: Q2020 | U106: =_xll.ESHistD($I$11&" "&$T106&$K$11,"Last","D",$Q$11) ->  | W106: =VLOOKUP($I$11&" "&T106&$K$11,Terminations!expchains,2,FALSE)-$Q$11 -> 
C107: 93 | E107: 2021-03-01 | F107: H | G107: H21 | H107: 21H | I107: =_xll.ESQuote($I$11&" "&IF(LEN($K$11)>0,H107,G107)&$K$11,"Recent") ->  | K107: =_xll.ESQuote($I$11&" "&IF(LEN($K$11)>0,H107,G107)&$K$11,"PrevPrice") ->  | M107: =_xll.ESQuote($I$11&" "&IF(LEN($K$11)>0,H107,G107)&$K$11,"DTE") ->  | Q107: 2020-09-01 | R107: U | S107: U20 | T107: U2020 | U107: =_xll.ESHistD($I$11&" "&$T107&$K$11,"Last","D",$Q$11) ->  | W107: =VLOOKUP($I$11&" "&T107&$K$11,Terminations!expchains,2,FALSE)-$Q$11 -> 
C108: 94 | E108: 2021-04-01 | F108: J | G108: J21 | H108: 21J | I108: =_xll.ESQuote($I$11&" "&IF(LEN($K$11)>0,H108,G108)&$K$11,"Recent") ->  | K108: =_xll.ESQuote($I$11&" "&IF(LEN($K$11)>0,H108,G108)&$K$11,"PrevPrice") ->  | M108: =_xll.ESQuote($I$11&" "&IF(LEN($K$11)>0,H108,G108)&$K$11,"DTE") ->  | Q108: 2020-10-01 | R108: V | S108: V20 | T108: V2020 | U108: =_xll.ESHistD($I$11&" "&$T108&$K$11,"Last","D",$Q$11) ->  | W108: =VLOOKUP($I$11&" "&T108&$K$11,Terminations!expchains,2,FALSE)-$Q$11 -> 
C109: 95 | E109: 2021-05-01 | F109: K | G109: K21 | H109: 21K | I109: =_xll.ESQuote($I$11&" "&IF(LEN($K$11)>0,H109,G109)&$K$11,"Recent") ->  | K109: =_xll.ESQuote($I$11&" "&IF(LEN($K$11)>0,H109,G109)&$K$11,"PrevPrice") ->  | M109: =_xll.ESQuote($I$11&" "&IF(LEN($K$11)>0,H109,G109)&$K$11,"DTE") ->  | Q109: 2020-11-01 | R109: X | S109: X20 | T109: X2020 | U109: =_xll.ESHistD($I$11&" "&$T109&$K$11,"Last","D",$Q$11) ->  | W109: =VLOOKUP($I$11&" "&T109&$K$11,Terminations!expchains,2,FALSE)-$Q$11 -> 
C110: 96 | E110: 2021-06-01 | F110: M | G110: M21 | H110: 21M | I110: =_xll.ESQuote($I$11&" "&IF(LEN($K$11)>0,H110,G110)&$K$11,"Recent") -> 81.19 | J110: 81.19 | K110: =_xll.ESQuote($I$11&" "&IF(LEN($K$11)>0,H110,G110)&$K$11,"PrevPrice") -> 81.45 | L110: 81.45 | M110: =_xll.ESQuote($I$11&" "&IF(LEN($K$11)>0,H110,G110)&$K$11,"DTE") -> 2898 | N110: 2898 | O110: 95.01639344 | Q110: 2020-12-01 | R110: Z | S110: Z20 | T110: Z2020 | U110: =_xll.ESHistD($I$11&" "&$T110&$K$11,"Last","D",$Q$11) -> 85.45 | V110: 85.45 | W110: =VLOOKUP($I$11&" "&T110&$K$11,Terminations!expchains,2,FALSE)-$Q$11 -> 2881 | X110: 94.45901639
C111: 97 | E111: 2021-07-01 | F111: N | G111: N21 | H111: 21N | I111: =_xll.ESQuote($I$11&" "&IF(LEN($K$11)>0,H111,G111)&$K$11,"Recent") ->  | K111: =_xll.ESQuote($I$11&" "&IF(LEN($K$11)>0,H111,G111)&$K$11,"PrevPrice") ->  | M111: =_xll.ESQuote($I$11&" "&IF(LEN($K$11)>0,H111,G111)&$K$11,"DTE") ->  | Q111: 2021-01-01 | R111: F | S111: F21 | T111: F2021 | U111: =_xll.ESHistD($I$11&" "&$T111&$K$11,"Last","D",$Q$11) ->  | W111: =VLOOKUP($I$11&" "&T111&$K$11,Terminations!expchains,2,FALSE)-$Q$11 -> 
C112: 98 | E112: 2021-08-01 | F112: Q | G112: Q21 | H112: 21Q | I112: =_xll.ESQuote($I$11&" "&IF(LEN($K$11)>0,H112,G112)&$K$11,"Recent") ->  | K112: =_xll.ESQuote($I$11&" "&IF(LEN($K$11)>0,H112,G112)&$K$11,"PrevPrice") ->  | M112: =_xll.ESQuote($I$11&" "&IF(LEN($K$11)>0,H112,G112)&$K$11,"DTE") ->  | Q112: 2021-02-01 | R112: G | S112: G21 | T112: G2021 | U112: =_xll.ESHistD($I$11&" "&$T112&$K$11,"Last","D",$Q$11) ->  | W112: =VLOOKUP($I$11&" "&T112&$K$11,Terminations!expchains,2,FALSE)-$Q$11 -> 
C113: 99 | E113: 2021-09-01 | F113: U | G113: U21 | H113: 21U | I113: =_xll.ESQuote($I$11&" "&IF(LEN($K$11)>0,H113,G113)&$K$11,"Recent") ->  | K113: =_xll.ESQuote($I$11&" "&IF(LEN($K$11)>0,H113,G113)&$K$11,"PrevPrice") ->  | M113: =_xll.ESQuote($I$11&" "&IF(LEN($K$11)>0,H113,G113)&$K$11,"DTE") ->  | Q113: 2021-03-01 | R113: H | S113: H21 | T113: H2021 | U113: =_xll.ESHistD($I$11&" "&$T113&$K$11,"Last","D",$Q$11) ->  | W113: =VLOOKUP($I$11&" "&T113&$K$11,Terminations!expchains,2,FALSE)-$Q$11 -> 
C114: 100 | E114: 2021-10-01 | F114: V | G114: V21 | H114: 21V | I114: =_xll.ESQuote($I$11&" "&IF(LEN($K$11)>0,H114,G114)&$K$11,"Recent") ->  | K114: =_xll.ESQuote($I$11&" "&IF(LEN($K$11)>0,H114,G114)&$K$11,"PrevPrice") ->  | M114: =_xll.ESQuote($I$11&" "&IF(LEN($K$11)>0,H114,G114)&$K$11,"DTE") ->  | Q114: 2021-04-01 | R114: J | S114: J21 | T114: J2021 | U114: =_xll.ESHistD($I$11&" "&$T114&$K$11,"Last","D",$Q$11) ->  | W114: =VLOOKUP($I$11&" "&T114&$K$11,Terminations!expchains,2,FALSE)-$Q$11 -> 
C115: 101 | E115: 2021-11-01 | F115: X | G115: X21 | H115: 21X | I115: =_xll.ESQuote($I$11&" "&IF(LEN($K$11)>0,H115,G115)&$K$11,"Recent") ->  | K115: =_xll.ESQuote($I$11&" "&IF(LEN($K$11)>0,H115,G115)&$K$11,"PrevPrice") ->  | M115: =_xll.ESQuote($I$11&" "&IF(LEN($K$11)>0,H115,G115)&$K$11,"DTE") ->  | Q115: 2021-05-01 | R115: K | S115: K21 | T115: K2021 | U115: =_xll.ESHistD($I$11&" "&$T115&$K$11,"Last","D",$Q$11) ->  | W115: =VLOOKUP($I$11&" "&T115&$K$11,Terminations!expchains,2,FALSE)-$Q$11 -> 
C116: 102 | E116: 2021-12-01 | F116: Z | G116: Z21 | H116: 21Z | I116: =_xll.ESQuote($I$11&" "&IF(LEN($K$11)>0,H116,G116)&$K$11,"Recent") -> 81.06 | J116: 81.06 | K116: =_xll.ESQuote($I$11&" "&IF(LEN($K$11)>0,H116,G116)&$K$11,"PrevPrice") -> 81.32 | L116: 81.32 | M116: =_xll.ESQuote($I$11&" "&IF(LEN($K$11)>0,H116,G116)&$K$11,"DTE") -> 3081 | N116: 3081 | O116: 101.0163934 | Q116: 2021-06-01 | R116: M | S116: M21 | T116: M2021 | U116: =_xll.ESHistD($I$11&" "&$T116&$K$11,"Last","D",$Q$11) -> 85.45 | V116: 85.45 | W116: =VLOOKUP($I$11&" "&T116&$K$11,Terminations!expchains,2,FALSE)-$Q$11 -> 3062 | X116: 100.3934426
C117: 103 | E117: 2022-01-01 | F117: F | G117: F22 | H117: 22F | I117: =_xll.ESQuote($I$11&" "&IF(LEN($K$11)>0,H117,G117)&$K$11,"Recent") ->  | K117: =_xll.ESQuote($I$11&" "&IF(LEN($K$11)>0,H117,G117)&$K$11,"PrevPrice") ->  | M117: =_xll.ESQuote($I$11&" "&IF(LEN($K$11)>0,H117,G117)&$K$11,"DTE") ->  | Q117: 2021-07-01 | R117: N | S117: N21 | T117: N2021 | U117: =_xll.ESHistD($I$11&" "&$T117&$K$11,"Last","D",$Q$11) ->  | W117: =VLOOKUP($I$11&" "&T117&$K$11,Terminations!expchains,2,FALSE)-$Q$11 -> 
C118: 104 | E118: 2022-02-01 | F118: G | G118: G22 | H118: 22G | I118: =_xll.ESQuote($I$11&" "&IF(LEN($K$11)>0,H118,G118)&$K$11,"Recent") ->  | K118: =_xll.ESQuote($I$11&" "&IF(LEN($K$11)>0,H118,G118)&$K$11,"PrevPrice") ->  | M118: =_xll.ESQuote($I$11&" "&IF(LEN($K$11)>0,H118,G118)&$K$11,"DTE") ->  | Q118: 2021-08-01 | R118: Q | S118: Q21 | T118: Q2021 | U118: =_xll.ESHistD($I$11&" "&$T118&$K$11,"Last","D",$Q$11) ->  | W118: =VLOOKUP($I$11&" "&T118&$K$11,Terminations!expchains,2,FALSE)-$Q$11 -> 
C119: 105 | E119: 2022-03-01 | F119: H | G119: H22 | H119: 22H | I119: =_xll.ESQuote($I$11&" "&IF(LEN($K$11)>0,H119,G119)&$K$11,"Recent") ->  | K119: =_xll.ESQuote($I$11&" "&IF(LEN($K$11)>0,H119,G119)&$K$11,"PrevPrice") ->  | M119: =_xll.ESQuote($I$11&" "&IF(LEN($K$11)>0,H119,G119)&$K$11,"DTE") ->  | Q119: 2021-09-01 | R119: U | S119: U21 | T119: U2021 | U119: =_xll.ESHistD($I$11&" "&$T119&$K$11,"Last","D",$Q$11) ->  | W119: =VLOOKUP($I$11&" "&T119&$K$11,Terminations!expchains,2,FALSE)-$Q$11 -> 
C120: 106 | E120: 2022-04-01 | F120: J | G120: J22 | H120: 22J | I120: =_xll.ESQuote($I$11&" "&IF(LEN($K$11)>0,H120,G120)&$K$11,"Recent") ->  | K120: =_xll.ESQuote($I$11&" "&IF(LEN($K$11)>0,H120,G120)&$K$11,"PrevPrice") ->  | M120: =_xll.ESQuote($I$11&" "&IF(LEN($K$11)>0,H120,G120)&$K$11,"DTE") ->  | Q120: 2021-10-01 | R120: V | S120: V21 | T120: V2021 | U120: =_xll.ESHistD($I$11&" "&$T120&$K$11,"Last","D",$Q$11) ->  | W120: =VLOOKUP($I$11&" "&T120&$K$11,Terminations!expchains,2,FALSE)-$Q$11 -> 
C121: 107 | E121: 2022-05-01 | F121: K | G121: K22 | H121: 22K | I121: =_xll.ESQuote($I$11&" "&IF(LEN($K$11)>0,H121,G121)&$K$11,"Recent") ->  | K121: =_xll.ESQuote($I$11&" "&IF(LEN($K$11)>0,H121,G121)&$K$11,"PrevPrice") ->  | M121: =_xll.ESQuote($I$11&" "&IF(LEN($K$11)>0,H121,G121)&$K$11,"DTE") ->  | Q121: 2021-11-01 | R121: X | S121: X21 | T121: X2021 | U121: =_xll.ESHistD($I$11&" "&$T121&$K$11,"Last","D",$Q$11) ->  | W121: =VLOOKUP($I$11&" "&T121&$K$11,Terminations!expchains,2,FALSE)-$Q$11 -> 
C122: 108 | E122: 2022-06-01 | F122: M | G122: M22 | H122: 22M | I122: =_xll.ESQuote($I$11&" "&IF(LEN($K$11)>0,H122,G122)&$K$11,"Recent") ->  | K122: =_xll.ESQuote($I$11&" "&IF(LEN($K$11)>0,H122,G122)&$K$11,"PrevPrice") ->  | M122: =_xll.ESQuote($I$11&" "&IF(LEN($K$11)>0,H122,G122)&$K$11,"DTE") ->  | Q122: 2021-12-01 | R122: Z | S122: Z21 | T122: Z2021 | U122: =_xll.ESHistD($I$11&" "&$T122&$K$11,"Last","D",$Q$11) -> 85.45 | V122: 85.45 | W122: =VLOOKUP($I$11&" "&T122&$K$11,Terminations!expchains,2,FALSE)-$Q$11 -> 3245 | X122: 106.3934426
C123: 109 | E123: 2022-07-01 | F123: N | G123: N22 | H123: 22N | I123: =_xll.ESQuote($I$11&" "&IF(LEN($K$11)>0,H123,G123)&$K$11,"Recent") ->  | K123: =_xll.ESQuote($I$11&" "&IF(LEN($K$11)>0,H123,G123)&$K$11,"PrevPrice") ->  | M123: =_xll.ESQuote($I$11&" "&IF(LEN($K$11)>0,H123,G123)&$K$11,"DTE") ->  | Q123: 2022-01-01 | R123: F | S123: F22 | T123: F2022 | U123: =_xll.ESHistD($I$11&" "&$T123&$K$11,"Last","D",$Q$11) ->  | W123: =VLOOKUP($I$11&" "&T123&$K$11,Terminations!expchains,2,FALSE)-$Q$11 -> 
C124: 110 | E124: 2022-08-01 | F124: Q | G124: Q22 | H124: 22Q | I124: =_xll.ESQuote($I$11&" "&IF(LEN($K$11)>0,H124,G124)&$K$11,"Recent") ->  | K124: =_xll.ESQuote($I$11&" "&IF(LEN($K$11)>0,H124,G124)&$K$11,"PrevPrice") ->  | M124: =_xll.ESQuote($I$11&" "&IF(LEN($K$11)>0,H124,G124)&$K$11,"DTE") ->  | Q124: 2022-02-01 | R124: G | S124: G22 | T124: G2022 | U124: =_xll.ESHistD($I$11&" "&$T124&$K$11,"Last","D",$Q$11) ->  | W124: =VLOOKUP($I$11&" "&T124&$K$11,Terminations!expchains,2,FALSE)-$Q$11 -> 
C125: 111 | E125: 2022-09-01 | F125: U | G125: U22 | H125: 22U | I125: =_xll.ESQuote($I$11&" "&IF(LEN($K$11)>0,H125,G125)&$K$11,"Recent") ->  | K125: =_xll.ESQuote($I$11&" "&IF(LEN($K$11)>0,H125,G125)&$K$11,"PrevPrice") ->  | M125: =_xll.ESQuote($I$11&" "&IF(LEN($K$11)>0,H125,G125)&$K$11,"DTE") ->  | Q125: 2022-03-01 | R125: H | S125: H22 | T125: H2022 | U125: =_xll.ESHistD($I$11&" "&$T125&$K$11,"Last","D",$Q$11) ->  | W125: =VLOOKUP($I$11&" "&T125&$K$11,Terminations!expchains,2,FALSE)-$Q$11 -> 
C126: 112 | E126: 2022-10-01 | F126: V | G126: V22 | H126: 22V | I126: =_xll.ESQuote($I$11&" "&IF(LEN($K$11)>0,H126,G126)&$K$11,"Recent") ->  | K126: =_xll.ESQuote($I$11&" "&IF(LEN($K$11)>0,H126,G126)&$K$11,"PrevPrice") ->  | M126: =_xll.ESQuote($I$11&" "&IF(LEN($K$11)>0,H126,G126)&$K$11,"DTE") ->  | Q126: 2022-04-01 | R126: J | S126: J22 | T126: J2022 | U126: =_xll.ESHistD($I$11&" "&$T126&$K$11,"Last","D",$Q$11) ->  | W126: =VLOOKUP($I$11&" "&T126&$K$11,Terminations!expchains,2,FALSE)-$Q$11 -> 
C127: 113 | E127: 2022-11-01 | F127: X | G127: X22 | H127: 22X | I127: =_xll.ESQuote($I$11&" "&IF(LEN($K$11)>0,H127,G127)&$K$11,"Recent") ->  | K127: =_xll.ESQuote($I$11&" "&IF(LEN($K$11)>0,H127,G127)&$K$11,"PrevPrice") ->  | M127: =_xll.ESQuote($I$11&" "&IF(LEN($K$11)>0,H127,G127)&$K$11,"DTE") ->  | Q127: 2022-05-01 | R127: K | S127: K22 | T127: K2022 | U127: =_xll.ESHistD($I$11&" "&$T127&$K$11,"Last","D",$Q$11) ->  | W127: =VLOOKUP($I$11&" "&T127&$K$11,Terminations!expchains,2,FALSE)-$Q$11 -> 
C128: 114 | E128: 2022-12-01 | F128: Z | G128: Z22 | H128: 22Z | I128: =_xll.ESQuote($I$11&" "&IF(LEN($K$11)>0,H128,G128)&$K$11,"Recent") ->  | K128: =_xll.ESQuote($I$11&" "&IF(LEN($K$11)>0,H128,G128)&$K$11,"PrevPrice") ->  | M128: =_xll.ESQuote($I$11&" "&IF(LEN($K$11)>0,H128,G128)&$K$11,"DTE") ->  | Q128: 2022-06-01 | R128: M | S128: M22 | T128: M2022 | U128: =_xll.ESHistD($I$11&" "&$T128&$K$11,"Last","D",$Q$11) ->  | W128: =VLOOKUP($I$11&" "&T128&$K$11,Terminations!expchains,2,FALSE)-$Q$11 -> 
C129: 115 | E129: 2023-01-01 | F129: F | G129: F23 | H129: 23F | I129: =_xll.ESQuote($I$11&" "&IF(LEN($K$11)>0,H129,G129)&$K$11,"Recent") ->  | K129: =_xll.ESQuote($I$11&" "&IF(LEN($K$11)>0,H129,G129)&$K$11,"PrevPrice") ->  | M129: =_xll.ESQuote($I$11&" "&IF(LEN($K$11)>0,H129,G129)&$K$11,"DTE") -> 3519 | N129: 3519 | Q129: 2022-07-01 | R129: N | S129: N22 | T129: N2022 | U129: =_xll.ESHistD($I$11&" "&$T129&$K$11,"Last","D",$Q$11) ->  | W129: =VLOOKUP($I$11&" "&T129&$K$11,Terminations!expchains,2,FALSE)-$Q$11 -> 
C130: 116 | E130: 2023-02-01 | F130: G | G130: G23 | H130: 23G | I130: =_xll.ESQuote($I$11&" "&IF(LEN($K$11)>0,H130,G130)&$K$11,"Recent") ->  | K130: =_xll.ESQuote($I$11&" "&IF(LEN($K$11)>0,H130,G130)&$K$11,"PrevPrice") ->  | M130: =_xll.ESQuote($I$11&" "&IF(LEN($K$11)>0,H130,G130)&$K$11,"DTE") ->  | Q130: 2022-08-01 | R130: Q | S130: Q22 | T130: Q2022 | U130: =_xll.ESHistD($I$11&" "&$T130&$K$11,"Last","D",$Q$11) ->  | W130: =VLOOKUP($I$11&" "&T130&$K$11,Terminations!expchains,2,FALSE)-$Q$11 -> 
C131: 117 | E131: 2023-03-01 | F131: H | G131: H23 | H131: 23H | I131: =_xll.ESQuote($I$11&" "&IF(LEN($K$11)>0,H131,G131)&$K$11,"Recent") ->  | K131: =_xll.ESQuote($I$11&" "&IF(LEN($K$11)>0,H131,G131)&$K$11,"PrevPrice") ->  | M131: =_xll.ESQuote($I$11&" "&IF(LEN($K$11)>0,H131,G131)&$K$11,"DTE") ->  | Q131: 2022-09-01 | R131: U | S131: U22 | T131: U2022 | U131: =_xll.ESHistD($I$11&" "&$T131&$K$11,"Last","D",$Q$11) ->  | W131: =VLOOKUP($I$11&" "&T131&$K$11,Terminations!expchains,2,FALSE)-$Q$11 -> 
C132: 118 | E132: 2023-04-01 | F132: J | G132: J23 | H132: 23J | I132: =_xll.ESQuote($I$11&" "&IF(LEN($K$11)>0,H132,G132)&$K$11,"Recent") ->  | K132: =_xll.ESQuote($I$11&" "&IF(LEN($K$11)>0,H132,G132)&$K$11,"PrevPrice") ->  | M132: =_xll.ESQuote($I$11&" "&IF(LEN($K$11)>0,H132,G132)&$K$11,"DTE") ->  | Q132: 2022-10-01 | R132: V | S132: V22 | T132: V2022 | U132: =_xll.ESHistD($I$11&" "&$T132&$K$11,"Last","D",$Q$11) ->  | W132: =VLOOKUP($I$11&" "&T132&$K$11,Terminations!expchains,2,FALSE)-$Q$11 -> 
C133: 119 | E133: 2023-05-01 | F133: K | G133: K23 | H133: 23K | I133: =_xll.ESQuote($I$11&" "&IF(LEN($K$11)>0,H133,G133)&$K$11,"Recent") ->  | K133: =_xll.ESQuote($I$11&" "&IF(LEN($K$11)>0,H133,G133)&$K$11,"PrevPrice") ->  | M133: =_xll.ESQuote($I$11&" "&IF(LEN($K$11)>0,H133,G133)&$K$11,"DTE") ->  | Q133: 2022-11-01 | R133: X | S133: X22 | T133: X2022 | U133: =_xll.ESHistD($I$11&" "&$T133&$K$11,"Last","D",$Q$11) ->  | W133: =VLOOKUP($I$11&" "&T133&$K$11,Terminations!expchains,2,FALSE)-$Q$11 -> 
C134: 120 | E134: 2023-06-01 | F134: M | G134: M23 | H134: 23M | I134: =_xll.ESQuote($I$11&" "&IF(LEN($K$11)>0,H134,G134)&$K$11,"Recent") ->  | K134: =_xll.ESQuote($I$11&" "&IF(LEN($K$11)>0,H134,G134)&$K$11,"PrevPrice") ->  | M134: =_xll.ESQuote($I$11&" "&IF(LEN($K$11)>0,H134,G134)&$K$11,"DTE") ->  | Q134: 2022-12-01 | R134: Z | S134: Z22 | T134: Z2022 | U134: =_xll.ESHistD($I$11&" "&$T134&$K$11,"Last","D",$Q$11) ->  | W134: =VLOOKUP($I$11&" "&T134&$K$11,Terminations!expchains,2,FALSE)-$Q$11 -> 
C135: 121 | E135: 2023-07-01 | F135: N | G135: N23 | H135: 23N | I135: =_xll.ESQuote($I$11&" "&IF(LEN($K$11)>0,H135,G135)&$K$11,"Recent") ->  | K135: =_xll.ESQuote($I$11&" "&IF(LEN($K$11)>0,H135,G135)&$K$11,"PrevPrice") ->  | M135: =_xll.ESQuote($I$11&" "&IF(LEN($K$11)>0,H135,G135)&$K$11,"DTE") ->  | Q135: 2023-01-01 | R135: F | S135: F23 | T135: F2023 | U135: =_xll.ESHistD($I$11&" "&$T135&$K$11,"Last","D",$Q$11) ->  | W135: =VLOOKUP($I$11&" "&T135&$K$11,Terminations!expchains,2,FALSE)-$Q$11 -> 
C136: 122 | E136: 2023-08-01 | F136: Q | G136: Q23 | H136: 23Q | I136: =_xll.ESQuote($I$11&" "&IF(LEN($K$11)>0,H136,G136)&$K$11,"Recent") ->  | K136: =_xll.ESQuote($I$11&" "&IF(LEN($K$11)>0,H136,G136)&$K$11,"PrevPrice") ->  | M136: =_xll.ESQuote($I$11&" "&IF(LEN($K$11)>0,H136,G136)&$K$11,"DTE") ->  | Q136: 2023-02-01 | R136: G | S136: G23 | T136: G2023 | U136: =_xll.ESHistD($I$11&" "&$T136&$K$11,"Last","D",$Q$11) ->  | W136: =VLOOKUP($I$11&" "&T136&$K$11,Terminations!expchains,2,FALSE)-$Q$11 -> 
C137: 123 | E137: 2023-09-01 | F137: U | G137: U23 | H137: 23U | I137: =_xll.ESQuote($I$11&" "&IF(LEN($K$11)>0,H137,G137)&$K$11,"Recent") ->  | K137: =_xll.ESQuote($I$11&" "&IF(LEN($K$11)>0,H137,G137)&$K$11,"PrevPrice") ->  | M137: =_xll.ESQuote($I$11&" "&IF(LEN($K$11)>0,H137,G137)&$K$11,"DTE") ->  | Q137: 2023-03-01 | R137: H | S137: H23 | T137: H2023 | U137: =_xll.ESHistD($I$11&" "&$T137&$K$11,"Last","D",$Q$11) ->  | W137: =VLOOKUP($I$11&" "&T137&$K$11,Terminations!expchains,2,FALSE)-$Q$11 -> 
C138: 124 | E138: 2023-10-01 | F138: V | G138: V23 | H138: 23V | I138: =_xll.ESQuote($I$11&" "&IF(LEN($K$11)>0,H138,G138)&$K$11,"Recent") ->  | K138: =_xll.ESQuote($I$11&" "&IF(LEN($K$11)>0,H138,G138)&$K$11,"PrevPrice") ->  | M138: =_xll.ESQuote($I$11&" "&IF(LEN($K$11)>0,H138,G138)&$K$11,"DTE") ->  | Q138: 2023-04-01 | R138: J | S138: J23 | T138: J2023 | U138: =_xll.ESHistD($I$11&" "&$T138&$K$11,"Last","D",$Q$11) ->  | W138: =VLOOKUP($I$11&" "&T138&$K$11,Terminations!expchains,2,FALSE)-$Q$11 -> 
C139: 125 | E139: 2023-11-01 | F139: X | G139: X23 | H139: 23X | I139: =_xll.ESQuote($I$11&" "&IF(LEN($K$11)>0,H139,G139)&$K$11,"Recent") ->  | K139: =_xll.ESQuote($I$11&" "&IF(LEN($K$11)>0,H139,G139)&$K$11,"PrevPrice") ->  | M139: =_xll.ESQuote($I$11&" "&IF(LEN($K$11)>0,H139,G139)&$K$11,"DTE") ->  | Q139: 2023-05-01 | R139: K | S139: K23 | T139: K2023 | U139: =_xll.ESHistD($I$11&" "&$T139&$K$11,"Last","D",$Q$11) ->  | W139: =VLOOKUP($I$11&" "&T139&$K$11,Terminations!expchains,2,FALSE)-$Q$11 -> 
C140: 126 | E140: 2023-12-01 | F140: Z | G140: Z23 | H140: 23Z | I140: =_xll.ESQuote($I$11&" "&IF(LEN($K$11)>0,H140,G140)&$K$11,"Recent") ->  | K140: =_xll.ESQuote($I$11&" "&IF(LEN($K$11)>0,H140,G140)&$K$11,"PrevPrice") ->  | M140: =_xll.ESQuote($I$11&" "&IF(LEN($K$11)>0,H140,G140)&$K$11,"DTE") ->  | Q140: 2023-06-01 | R140: M | S140: M23 | T140: M2023 | U140: =_xll.ESHistD($I$11&" "&$T140&$K$11,"Last","D",$Q$11) ->  | W140: =VLOOKUP($I$11&" "&T140&$K$11,Terminations!expchains,2,FALSE)-$Q$11 -> 
C141: 127 | E141: 2024-01-01 | F141: F | G141: F24 | H141: 24F | I141: =_xll.ESQuote($I$11&" "&IF(LEN($K$11)>0,H141,G141)&$K$11,"Recent") ->  | K141: =_xll.ESQuote($I$11&" "&IF(LEN($K$11)>0,H141,G141)&$K$11,"PrevPrice") ->  | M141: =_xll.ESQuote($I$11&" "&IF(LEN($K$11)>0,H141,G141)&$K$11,"DTE") ->  | Q141: 2023-07-01 | R141: N | S141: N23 | T141: N2023 | U141: =_xll.ESHistD($I$11&" "&$T141&$K$11,"Last","D",$Q$11) ->  | W141: =VLOOKUP($I$11&" "&T141&$K$11,Terminations!expchains,2,FALSE)-$Q$11 -> 
C142: 128 | E142: 2024-02-01 | F142: G | G142: G24 | H142: 24G | I142: =_xll.ESQuote($I$11&" "&IF(LEN($K$11)>0,H142,G142)&$K$11,"Recent") ->  | K142: =_xll.ESQuote($I$11&" "&IF(LEN($K$11)>0,H142,G142)&$K$11,"PrevPrice") ->  | M142: =_xll.ESQuote($I$11&" "&IF(LEN($K$11)>0,H142,G142)&$K$11,"DTE") ->  | Q142: =DATE(YEAR($Q$11),MONTH($Q$11)+$C142,1) -> 2023-08-01 | R142: Q | S142: Q23 | T142: =IF(LEN($K$11)>0,YEAR(Q142)&R142,R142&YEAR(Q142)) -> Q2023 | U142: =_xll.ESHistD($I$11&" "&$T142&$K$11,"Last","D",$Q$11) ->  | W142: =VLOOKUP($I$11&" "&T142&$K$11,Terminations!expchains,2,FALSE)-$Q$11 -> 
C143: 129 | E143: =DATE(YEAR($E$11),MONTH($E$11)+$C143,1) -> 2024-03-01 | F143: =RIGHT(LEFT("FGHJKMNQUVXZ",MONTH(E143)),1) -> H | G143: =F143&RIGHT(YEAR(E143),IF(YEAR(E143)<2018,1,2)) -> H24 | H143: =RIGHT(G143,LEN(G143)-1)&F143 -> 24H | I143: =_xll.ESQuote($I$11&" "&IF(LEN($K$11)>0,H143,G143)&$K$11,"Recent") ->  | J143: =IF(ISNUMBER(I143),I143,NA()) ->  | K143: =_xll.ESQuote($I$11&" "&IF(LEN($K$11)>0,H143,G143)&$K$11,"PrevPrice") ->  | L143: =IF(ISNUMBER(K143),K143,NA()) ->  | M143: =_xll.ESQuote($I$11&" "&IF(LEN($K$11)>0,H143,G143)&$K$11,"DTE") ->  | N143: =IF(ISNUMBER(M143),M143,NA()) ->  | O143: =IF(AND(ISNUMBER(J143),N143>0),N143/30.5,NA()) ->  | Q143: 2023-09-01 | R143: =RIGHT(LEFT("FGHJKMNQUVXZ",MONTH(Q143)),1) -> U | S143: =R143&RIGHT(YEAR(Q143),IF(YEAR(Q143)<2018,1,2)) -> U23 | T143: U2023 | U143: =_xll.ESHistD($I$11&" "&$T143&$K$11,"Last","D",$Q$11) ->  | V143: =IF(ISNUMBER(U143),U143,NA()) ->  | W143: =VLOOKUP($I$11&" "&T143&$K$11,Terminations!expchains,2,FALSE)-$Q$11 ->  | X143: =IF(AND(ISNUMBER(V143),W143>0),W143/30.5,NA()) -> 
C144: 130 | E144: 2024-04-01 | F144: J | G144: J24 | H144: 24J | I144: =_xll.ESQuote($I$11&" "&IF(LEN($K$11)>0,H144,G144)&$K$11,"Recent") ->  | K144: =_xll.ESQuote($I$11&" "&IF(LEN($K$11)>0,H144,G144)&$K$11,"PrevPrice") ->  | M144: =_xll.ESQuote($I$11&" "&IF(LEN($K$11)>0,H144,G144)&$K$11,"DTE") ->  | Q144: 2023-10-01 | R144: V | S144: V23 | T144: V2023 | U144: =_xll.ESHistD($I$11&" "&$T144&$K$11,"Last","D",$Q$11) ->  | W144: =VLOOKUP($I$11&" "&T144&$K$11,Terminations!expchains,2,FALSE)-$Q$11 -> 
C145: 131 | E145: 2024-05-01 | F145: K | G145: K24 | H145: 24K | I145: =_xll.ESQuote($I$11&" "&IF(LEN($K$11)>0,H145,G145)&$K$11,"Recent") ->  | K145: =_xll.ESQuote($I$11&" "&IF(LEN($K$11)>0,H145,G145)&$K$11,"PrevPrice") ->  | M145: =_xll.ESQuote($I$11&" "&IF(LEN($K$11)>0,H145,G145)&$K$11,"DTE") ->  | Q145: 2023-11-01 | R145: X | S145: X23 | T145: X2023 | U145: =_xll.ESHistD($I$11&" "&$T145&$K$11,"Last","D",$Q$11) ->  | W145: =VLOOKUP($I$11&" "&T145&$K$11,Terminations!expchains,2,FALSE)-$Q$11 -> 
C146: 132 | E146: 2024-06-01 | F146: M | G146: M24 | H146: 24M | I146: =_xll.ESQuote($I$11&" "&IF(LEN($K$11)>0,H146,G146)&$K$11,"Recent") ->  | K146: =_xll.ESQuote($I$11&" "&IF(LEN($K$11)>0,H146,G146)&$K$11,"PrevPrice") ->  | M146: =_xll.ESQuote($I$11&" "&IF(LEN($K$11)>0,H146,G146)&$K$11,"DTE") ->  | Q146: 2023-12-01 | R146: Z | S146: Z23 | T146: Z2023 | U146: =_xll.ESHistD($I$11&" "&$T146&$K$11,"Last","D",$Q$11) ->  | W146: =VLOOKUP($I$11&" "&T146&$K$11,Terminations!expchains,2,FALSE)-$Q$11 -> 
C147: 133 | E147: 2024-07-01 | F147: N | G147: N24 | H147: 24N | I147: =_xll.ESQuote($I$11&" "&IF(LEN($K$11)>0,H147,G147)&$K$11,"Recent") ->  | K147: =_xll.ESQuote($I$11&" "&IF(LEN($K$11)>0,H147,G147)&$K$11,"PrevPrice") ->  | M147: =_xll.ESQuote($I$11&" "&IF(LEN($K$11)>0,H147,G147)&$K$11,"DTE") ->  | Q147: 2024-01-01 | R147: F | S147: F24 | T147: F2024 | U147: =_xll.ESHistD($I$11&" "&$T147&$K$11,"Last","D",$Q$11) ->  | W147: =VLOOKUP($I$11&" "&T147&$K$11,Terminations!expchains,2,FALSE)-$Q$11 -> 
C148: 134 | E148: 2024-08-01 | F148: Q | G148: Q24 | H148: 24Q | I148: =_xll.ESQuote($I$11&" "&IF(LEN($K$11)>0,H148,G148)&$K$11,"Recent") ->  | K148: =_xll.ESQuote($I$11&" "&IF(LEN($K$11)>0,H148,G148)&$K$11,"PrevPrice") ->  | M148: =_xll.ESQuote($I$11&" "&IF(LEN($K$11)>0,H148,G148)&$K$11,"DTE") ->  | Q148: 2024-02-01 | R148: G | S148: G24 | T148: G2024 | U148: =_xll.ESHistD($I$11&" "&$T148&$K$11,"Last","D",$Q$11) ->  | W148: =VLOOKUP($I$11&" "&T148&$K$11,Terminations!expchains,2,FALSE)-$Q$11 -> 
C149: 135 | E149: 2024-09-01 | F149: U | G149: U24 | H149: 24U | I149: =_xll.ESQuote($I$11&" "&IF(LEN($K$11)>0,H149,G149)&$K$11,"Recent") ->  | K149: =_xll.ESQuote($I$11&" "&IF(LEN($K$11)>0,H149,G149)&$K$11,"PrevPrice") ->  | M149: =_xll.ESQuote($I$11&" "&IF(LEN($K$11)>0,H149,G149)&$K$11,"DTE") ->  | Q149: 2024-03-01 | R149: H | S149: H24 | T149: H2024 | U149: =_xll.ESHistD($I$11&" "&$T149&$K$11,"Last","D",$Q$11) ->  | W149: =VLOOKUP($I$11&" "&T149&$K$11,Terminations!expchains,2,FALSE)-$Q$11 -> 
C150: 136 | E150: 2024-10-01 | F150: V | G150: V24 | H150: 24V | I150: =_xll.ESQuote($I$11&" "&IF(LEN($K$11)>0,H150,G150)&$K$11,"Recent") ->  | K150: =_xll.ESQuote($I$11&" "&IF(LEN($K$11)>0,H150,G150)&$K$11,"PrevPrice") ->  | M150: =_xll.ESQuote($I$11&" "&IF(LEN($K$11)>0,H150,G150)&$K$11,"DTE") ->  | Q150: 2024-04-01 | R150: J | S150: J24 | T150: J2024 | U150: =_xll.ESHistD($I$11&" "&$T150&$K$11,"Last","D",$Q$11) ->  | W150: =VLOOKUP($I$11&" "&T150&$K$11,Terminations!expchains,2,FALSE)-$Q$11 -> 
C151: 137 | E151: 2024-11-01 | F151: X | G151: X24 | H151: 24X | I151: =_xll.ESQuote($I$11&" "&IF(LEN($K$11)>0,H151,G151)&$K$11,"Recent") ->  | K151: =_xll.ESQuote($I$11&" "&IF(LEN($K$11)>0,H151,G151)&$K$11,"PrevPrice") ->  | M151: =_xll.ESQuote($I$11&" "&IF(LEN($K$11)>0,H151,G151)&$K$11,"DTE") ->  | Q151: 2024-05-01 | R151: K | S151: K24 | T151: K2024 | U151: =_xll.ESHistD($I$11&" "&$T151&$K$11,"Last","D",$Q$11) ->  | W151: =VLOOKUP($I$11&" "&T151&$K$11,Terminations!expchains,2,FALSE)-$Q$11 -> 
C152: 138 | E152: 2024-12-01 | F152: Z | G152: Z24 | H152: 24Z | I152: =_xll.ESQuote($I$11&" "&IF(LEN($K$11)>0,H152,G152)&$K$11,"Recent") ->  | K152: =_xll.ESQuote($I$11&" "&IF(LEN($K$11)>0,H152,G152)&$K$11,"PrevPrice") ->  | M152: =_xll.ESQuote($I$11&" "&IF(LEN($K$11)>0,H152,G152)&$K$11,"DTE") ->  | Q152: 2024-06-01 | R152: M | S152: M24 | T152: M2024 | U152: =_xll.ESHistD($I$11&" "&$T152&$K$11,"Last","D",$Q$11) ->  | W152: =VLOOKUP($I$11&" "&T152&$K$11,Terminations!expchains,2,FALSE)-$Q$11 -> 
C153: 139 | E153: 2025-01-01 | F153: F | G153: F25 | H153: 25F | I153: =_xll.ESQuote($I$11&" "&IF(LEN($K$11)>0,H153,G153)&$K$11,"Recent") ->  | K153: =_xll.ESQuote($I$11&" "&IF(LEN($K$11)>0,H153,G153)&$K$11,"PrevPrice") ->  | M153: =_xll.ESQuote($I$11&" "&IF(LEN($K$11)>0,H153,G153)&$K$11,"DTE") ->  | Q153: 2024-07-01 | R153: N | S153: N24 | T153: N2024 | U153: =_xll.ESHistD($I$11&" "&$T153&$K$11,"Last","D",$Q$11) ->  | W153: =VLOOKUP($I$11&" "&T153&$K$11,Terminations!expchains,2,FALSE)-$Q$11 -> 
C154: 140 | E154: 2025-02-01 | F154: G | G154: G25 | H154: 25G | I154: =_xll.ESQuote($I$11&" "&IF(LEN($K$11)>0,H154,G154)&$K$11,"Recent") ->  | K154: =_xll.ESQuote($I$11&" "&IF(LEN($K$11)>0,H154,G154)&$K$11,"PrevPrice") ->  | M154: =_xll.ESQuote($I$11&" "&IF(LEN($K$11)>0,H154,G154)&$K$11,"DTE") ->  | Q154: 2024-08-01 | R154: Q | S154: Q24 | T154: Q2024 | U154: =_xll.ESHistD($I$11&" "&$T154&$K$11,"Last","D",$Q$11) ->  | W154: =VLOOKUP($I$11&" "&T154&$K$11,Terminations!expchains,2,FALSE)-$Q$11 -> 
C155: 141 | E155: 2025-03-01 | F155: H | G155: H25 | H155: 25H | I155: =_xll.ESQuote($I$11&" "&IF(LEN($K$11)>0,H155,G155)&$K$11,"Recent") ->  | K155: =_xll.ESQuote($I$11&" "&IF(LEN($K$11)>0,H155,G155)&$K$11,"PrevPrice") ->  | M155: =_xll.ESQuote($I$11&" "&IF(LEN($K$11)>0,H155,G155)&$K$11,"DTE") ->  | Q155: 2024-09-01 | R155: U | S155: U24 | T155: U2024 | U155: =_xll.ESHistD($I$11&" "&$T155&$K$11,"Last","D",$Q$11) ->  | W155: =VLOOKUP($I$11&" "&T155&$K$11,Terminations!expchains,2,FALSE)-$Q$11 -> 
C156: 142 | E156: 2025-04-01 | F156: J | G156: J25 | H156: 25J | I156: =_xll.ESQuote($I$11&" "&IF(LEN($K$11)>0,H156,G156)&$K$11,"Recent") ->  | K156: =_xll.ESQuote($I$11&" "&IF(LEN($K$11)>0,H156,G156)&$K$11,"PrevPrice") ->  | M156: =_xll.ESQuote($I$11&" "&IF(LEN($K$11)>0,H156,G156)&$K$11,"DTE") ->  | Q156: 2024-10-01 | R156: V | S156: V24 | T156: V2024 | U156: =_xll.ESHistD($I$11&" "&$T156&$K$11,"Last","D",$Q$11) ->  | W156: =VLOOKUP($I$11&" "&T156&$K$11,Terminations!expchains,2,FALSE)-$Q$11 -> 
C157: 143 | E157: 2025-05-01 | F157: K | G157: K25 | H157: 25K | I157: =_xll.ESQuote($I$11&" "&IF(LEN($K$11)>0,H157,G157)&$K$11,"Recent") ->  | K157: =_xll.ESQuote($I$11&" "&IF(LEN($K$11)>0,H157,G157)&$K$11,"PrevPrice") ->  | M157: =_xll.ESQuote($I$11&" "&IF(LEN($K$11)>0,H157,G157)&$K$11,"DTE") ->  | Q157: 2024-11-01 | R157: X | S157: X24 | T157: X2024 | U157: =_xll.ESHistD($I$11&" "&$T157&$K$11,"Last","D",$Q$11) ->  | W157: =VLOOKUP($I$11&" "&T157&$K$11,Terminations!expchains,2,FALSE)-$Q$11 -> 
C158: 144 | E158: 2025-06-01 | F158: M | G158: M25 | H158: 25M | I158: =_xll.ESQuote($I$11&" "&IF(LEN($K$11)>0,H158,G158)&$K$11,"Recent") ->  | K158: =_xll.ESQuote($I$11&" "&IF(LEN($K$11)>0,H158,G158)&$K$11,"PrevPrice") ->  | M158: =_xll.ESQuote($I$11&" "&IF(LEN($K$11)>0,H158,G158)&$K$11,"DTE") ->  | Q158: 2024-12-01 | R158: Z | S158: Z24 | T158: Z2024 | U158: =_xll.ESHistD($I$11&" "&$T158&$K$11,"Last","D",$Q$11) ->  | W158: =VLOOKUP($I$11&" "&T158&$K$11,Terminations!expchains,2,FALSE)-$Q$11 -> 
C159: 145 | E159: 2025-07-01 | F159: N | G159: N25 | H159: 25N | I159: =_xll.ESQuote($I$11&" "&IF(LEN($K$11)>0,H159,G159)&$K$11,"Recent") ->  | K159: =_xll.ESQuote($I$11&" "&IF(LEN($K$11)>0,H159,G159)&$K$11,"PrevPrice") ->  | M159: =_xll.ESQuote($I$11&" "&IF(LEN($K$11)>0,H159,G159)&$K$11,"DTE") ->  | Q159: 2025-01-01 | R159: F | S159: F25 | T159: F2025 | U159: =_xll.ESHistD($I$11&" "&$T159&$K$11,"Last","D",$Q$11) ->  | W159: =VLOOKUP($I$11&" "&T159&$K$11,Terminations!expchains,2,FALSE)-$Q$11 -> 
C160: 146 | E160: 2025-08-01 | F160: Q | G160: Q25 | H160: 25Q | I160: =_xll.ESQuote($I$11&" "&IF(LEN($K$11)>0,H160,G160)&$K$11,"Recent") ->  | K160: =_xll.ESQuote($I$11&" "&IF(LEN($K$11)>0,H160,G160)&$K$11,"PrevPrice") ->  | M160: =_xll.ESQuote($I$11&" "&IF(LEN($K$11)>0,H160,G160)&$K$11,"DTE") ->  | Q160: 2025-02-01 | R160: G | S160: G25 | T160: G2025 | U160: =_xll.ESHistD($I$11&" "&$T160&$K$11,"Last","D",$Q$11) ->  | W160: =VLOOKUP($I$11&" "&T160&$K$11,Terminations!expchains,2,FALSE)-$Q$11 -> 
C161: 147 | E161: 2025-09-01 | F161: U | G161: U25 | H161: 25U | I161: =_xll.ESQuote($I$11&" "&IF(LEN($K$11)>0,H161,G161)&$K$11,"Recent") ->  | K161: =_xll.ESQuote($I$11&" "&IF(LEN($K$11)>0,H161,G161)&$K$11,"PrevPrice") ->  | M161: =_xll.ESQuote($I$11&" "&IF(LEN($K$11)>0,H161,G161)&$K$11,"DTE") ->  | Q161: 2025-03-01 | R161: H | S161: H25 | T161: H2025 | U161: =_xll.ESHistD($I$11&" "&$T161&$K$11,"Last","D",$Q$11) ->  | W161: =VLOOKUP($I$11&" "&T161&$K$11,Terminations!expchains,2,FALSE)-$Q$11 -> 
C162: 148 | E162: 2025-10-01 | F162: V | G162: V25 | H162: 25V | I162: =_xll.ESQuote($I$11&" "&IF(LEN($K$11)>0,H162,G162)&$K$11,"Recent") ->  | K162: =_xll.ESQuote($I$11&" "&IF(LEN($K$11)>0,H162,G162)&$K$11,"PrevPrice") ->  | M162: =_xll.ESQuote($I$11&" "&IF(LEN($K$11)>0,H162,G162)&$K$11,"DTE") ->  | Q162: 2025-04-01 | R162: J | S162: J25 | T162: J2025 | U162: =_xll.ESHistD($I$11&" "&$T162&$K$11,"Last","D",$Q$11) ->  | W162: =VLOOKUP($I$11&" "&T162&$K$11,Terminations!expchains,2,FALSE)-$Q$11 -> 
C163: 149 | E163: 2025-11-01 | F163: X | G163: X25 | H163: 25X | I163: =_xll.ESQuote($I$11&" "&IF(LEN($K$11)>0,H163,G163)&$K$11,"Recent") ->  | K163: =_xll.ESQuote($I$11&" "&IF(LEN($K$11)>0,H163,G163)&$K$11,"PrevPrice") ->  | M163: =_xll.ESQuote($I$11&" "&IF(LEN($K$11)>0,H163,G163)&$K$11,"DTE") ->  | Q163: 2025-05-01 | R163: K | S163: K25 | T163: K2025 | U163: =_xll.ESHistD($I$11&" "&$T163&$K$11,"Last","D",$Q$11) ->  | W163: =VLOOKUP($I$11&" "&T163&$K$11,Terminations!expchains,2,FALSE)-$Q$11 -> 
C164: 150 | E164: 2025-12-01 | F164: Z | G164: Z25 | H164: 25Z | I164: =_xll.ESQuote($I$11&" "&IF(LEN($K$11)>0,H164,G164)&$K$11,"Recent") ->  | K164: =_xll.ESQuote($I$11&" "&IF(LEN($K$11)>0,H164,G164)&$K$11,"PrevPrice") ->  | M164: =_xll.ESQuote($I$11&" "&IF(LEN($K$11)>0,H164,G164)&$K$11,"DTE") ->  | Q164: 2025-06-01 | R164: M | S164: M25 | T164: M2025 | U164: =_xll.ESHistD($I$11&" "&$T164&$K$11,"Last","D",$Q$11) ->  | W164: =VLOOKUP($I$11&" "&T164&$K$11,Terminations!expchains,2,FALSE)-$Q$11 -> 
C165: 151 | E165: 2026-01-01 | F165: F | G165: F26 | H165: 26F | I165: =_xll.ESQuote($I$11&" "&IF(LEN($K$11)>0,H165,G165)&$K$11,"Recent") ->  | K165: =_xll.ESQuote($I$11&" "&IF(LEN($K$11)>0,H165,G165)&$K$11,"PrevPrice") ->  | M165: =_xll.ESQuote($I$11&" "&IF(LEN($K$11)>0,H165,G165)&$K$11,"DTE") ->  | Q165: 2025-07-01 | R165: N | S165: N25 | T165: N2025 | U165: =_xll.ESHistD($I$11&" "&$T165&$K$11,"Last","D",$Q$11) ->  | W165: =VLOOKUP($I$11&" "&T165&$K$11,Terminations!expchains,2,FALSE)-$Q$11 -> 
C166: 152 | E166: 2026-02-01 | F166: G | G166: G26 | H166: 26G | I166: =_xll.ESQuote($I$11&" "&IF(LEN($K$11)>0,H166,G166)&$K$11,"Recent") ->  | K166: =_xll.ESQuote($I$11&" "&IF(LEN($K$11)>0,H166,G166)&$K$11,"PrevPrice") ->  | M166: =_xll.ESQuote($I$11&" "&IF(LEN($K$11)>0,H166,G166)&$K$11,"DTE") ->  | Q166: 2025-08-01 | R166: Q | S166: Q25 | T166: Q2025 | U166: =_xll.ESHistD($I$11&" "&$T166&$K$11,"Last","D",$Q$11) ->  | W166: =VLOOKUP($I$11&" "&T166&$K$11,Terminations!expchains,2,FALSE)-$Q$11 -> 
C167: 153 | E167: 2026-03-01 | F167: H | G167: H26 | H167: 26H | I167: =_xll.ESQuote($I$11&" "&IF(LEN($K$11)>0,H167,G167)&$K$11,"Recent") ->  | K167: =_xll.ESQuote($I$11&" "&IF(LEN($K$11)>0,H167,G167)&$K$11,"PrevPrice") ->  | M167: =_xll.ESQuote($I$11&" "&IF(LEN($K$11)>0,H167,G167)&$K$11,"DTE") ->  | Q167: 2025-09-01 | R167: U | S167: U25 | T167: U2025 | U167: =_xll.ESHistD($I$11&" "&$T167&$K$11,"Last","D",$Q$11) ->  | W167: =VLOOKUP($I$11&" "&T167&$K$11,Terminations!expchains,2,FALSE)-$Q$11 -> 
C168: 154 | E168: 2026-04-01 | F168: J | G168: J26 | H168: 26J | I168: =_xll.ESQuote($I$11&" "&IF(LEN($K$11)>0,H168,G168)&$K$11,"Recent") ->  | K168: =_xll.ESQuote($I$11&" "&IF(LEN($K$11)>0,H168,G168)&$K$11,"PrevPrice") ->  | M168: =_xll.ESQuote($I$11&" "&IF(LEN($K$11)>0,H168,G168)&$K$11,"DTE") ->  | Q168: 2025-10-01 | R168: V | S168: V25 | T168: V2025 | U168: =_xll.ESHistD($I$11&" "&$T168&$K$11,"Last","D",$Q$11) ->  | W168: =VLOOKUP($I$11&" "&T168&$K$11,Terminations!expchains,2,FALSE)-$Q$11 -> 
C169: 155 | E169: 2026-05-01 | F169: K | G169: K26 | H169: 26K | I169: =_xll.ESQuote($I$11&" "&IF(LEN($K$11)>0,H169,G169)&$K$11,"Recent") ->  | K169: =_xll.ESQuote($I$11&" "&IF(LEN($K$11)>0,H169,G169)&$K$11,"PrevPrice") ->  | M169: =_xll.ESQuote($I$11&" "&IF(LEN($K$11)>0,H169,G169)&$K$11,"DTE") ->  | Q169: 2025-11-01 | R169: X | S169: X25 | T169: X2025 | U169: =_xll.ESHistD($I$11&" "&$T169&$K$11,"Last","D",$Q$11) ->  | W169: =VLOOKUP($I$11&" "&T169&$K$11,Terminations!expchains,2,FALSE)-$Q$11 -> 
C170: 156 | E170: 2026-06-01 | F170: M | G170: M26 | H170: 26M | I170: =_xll.ESQuote($I$11&" "&IF(LEN($K$11)>0,H170,G170)&$K$11,"Recent") ->  | K170: =_xll.ESQuote($I$11&" "&IF(LEN($K$11)>0,H170,G170)&$K$11,"PrevPrice") ->  | M170: =_xll.ESQuote($I$11&" "&IF(LEN($K$11)>0,H170,G170)&$K$11,"DTE") ->  | Q170: 2025-12-01 | R170: Z | S170: Z25 | T170: Z2025 | U170: =_xll.ESHistD($I$11&" "&$T170&$K$11,"Last","D",$Q$11) ->  | W170: =VLOOKUP($I$11&" "&T170&$K$11,Terminations!expchains,2,FALSE)-$Q$11 -> 
C171: 157 | E171: 2026-07-01 | F171: N | G171: N26 | H171: 26N | I171: =_xll.ESQuote($I$11&" "&IF(LEN($K$11)>0,H171,G171)&$K$11,"Recent") ->  | K171: =_xll.ESQuote($I$11&" "&IF(LEN($K$11)>0,H171,G171)&$K$11,"PrevPrice") ->  | M171: =_xll.ESQuote($I$11&" "&IF(LEN($K$11)>0,H171,G171)&$K$11,"DTE") ->  | Q171: 2026-01-01 | R171: F | S171: F26 | T171: F2026 | U171: =_xll.ESHistD($I$11&" "&$T171&$K$11,"Last","D",$Q$11) ->  | W171: =VLOOKUP($I$11&" "&T171&$K$11,Terminations!expchains,2,FALSE)-$Q$11 -> 
C172: 158 | E172: 2026-08-01 | F172: Q | G172: Q26 | H172: 26Q | I172: =_xll.ESQuote($I$11&" "&IF(LEN($K$11)>0,H172,G172)&$K$11,"Recent") ->  | K172: =_xll.ESQuote($I$11&" "&IF(LEN($K$11)>0,H172,G172)&$K$11,"PrevPrice") ->  | M172: =_xll.ESQuote($I$11&" "&IF(LEN($K$11)>0,H172,G172)&$K$11,"DTE") ->  | Q172: 2026-02-01 | R172: G | S172: G26 | T172: G2026 | U172: =_xll.ESHistD($I$11&" "&$T172&$K$11,"Last","D",$Q$11) ->  | W172: =VLOOKUP($I$11&" "&T172&$K$11,Terminations!expchains,2,FALSE)-$Q$11 -> 
C173: 159 | E173: 2026-09-01 | F173: U | G173: U26 | H173: 26U | I173: =_xll.ESQuote($I$11&" "&IF(LEN($K$11)>0,H173,G173)&$K$11,"Recent") ->  | K173: =_xll.ESQuote($I$11&" "&IF(LEN($K$11)>0,H173,G173)&$K$11,"PrevPrice") ->  | M173: =_xll.ESQuote($I$11&" "&IF(LEN($K$11)>0,H173,G173)&$K$11,"DTE") ->  | Q173: 2026-03-01 | R173: H | S173: H26 | T173: H2026 | U173: =_xll.ESHistD($I$11&" "&$T173&$K$11,"Last","D",$Q$11) ->  | W173: =VLOOKUP($I$11&" "&T173&$K$11,Terminations!expchains,2,FALSE)-$Q$11 -> 
C174: 160 | E174: 2026-10-01 | F174: V | G174: V26 | H174: 26V | I174: =_xll.ESQuote($I$11&" "&IF(LEN($K$11)>0,H174,G174)&$K$11,"Recent") ->  | K174: =_xll.ESQuote($I$11&" "&IF(LEN($K$11)>0,H174,G174)&$K$11,"PrevPrice") ->  | M174: =_xll.ESQuote($I$11&" "&IF(LEN($K$11)>0,H174,G174)&$K$11,"DTE") ->  | Q174: 2026-04-01 | R174: J | S174: J26 | T174: J2026 | U174: =_xll.ESHistD($I$11&" "&$T174&$K$11,"Last","D",$Q$11) ->  | W174: =VLOOKUP($I$11&" "&T174&$K$11,Terminations!expchains,2,FALSE)-$Q$11 -> 
C175: 161 | E175: 2026-11-01 | F175: X | G175: X26 | H175: 26X | I175: =_xll.ESQuote($I$11&" "&IF(LEN($K$11)>0,H175,G175)&$K$11,"Recent") ->  | K175: =_xll.ESQuote($I$11&" "&IF(LEN($K$11)>0,H175,G175)&$K$11,"PrevPrice") ->  | M175: =_xll.ESQuote($I$11&" "&IF(LEN($K$11)>0,H175,G175)&$K$11,"DTE") ->  | Q175: 2026-05-01 | R175: K | S175: K26 | T175: K2026 | U175: =_xll.ESHistD($I$11&" "&$T175&$K$11,"Last","D",$Q$11) ->  | W175: =VLOOKUP($I$11&" "&T175&$K$11,Terminations!expchains,2,FALSE)-$Q$11 -> 
C176: 162 | E176: 2026-12-01 | F176: Z | G176: Z26 | H176: 26Z | I176: =_xll.ESQuote($I$11&" "&IF(LEN($K$11)>0,H176,G176)&$K$11,"Recent") ->  | K176: =_xll.ESQuote($I$11&" "&IF(LEN($K$11)>0,H176,G176)&$K$11,"PrevPrice") ->  | M176: =_xll.ESQuote($I$11&" "&IF(LEN($K$11)>0,H176,G176)&$K$11,"DTE") ->  | Q176: 2026-06-01 | R176: M | S176: M26 | T176: M2026 | U176: =_xll.ESHistD($I$11&" "&$T176&$K$11,"Last","D",$Q$11) ->  | W176: =VLOOKUP($I$11&" "&T176&$K$11,Terminations!expchains,2,FALSE)-$Q$11 -> 
C177: 163 | E177: 2027-01-01 | F177: F | G177: F27 | H177: 27F | I177: =_xll.ESQuote($I$11&" "&IF(LEN($K$11)>0,H177,G177)&$K$11,"Recent") ->  | K177: =_xll.ESQuote($I$11&" "&IF(LEN($K$11)>0,H177,G177)&$K$11,"PrevPrice") ->  | M177: =_xll.ESQuote($I$11&" "&IF(LEN($K$11)>0,H177,G177)&$K$11,"DTE") ->  | Q177: 2026-07-01 | R177: N | S177: N26 | T177: N2026 | U177: =_xll.ESHistD($I$11&" "&$T177&$K$11,"Last","D",$Q$11) ->  | W177: =VLOOKUP($I$11&" "&T177&$K$11,Terminations!expchains,2,FALSE)-$Q$11 -> 
C178: 164 | E178: 2027-02-01 | F178: G | G178: G27 | H178: 27G | I178: =_xll.ESQuote($I$11&" "&IF(LEN($K$11)>0,H178,G178)&$K$11,"Recent") ->  | K178: =_xll.ESQuote($I$11&" "&IF(LEN($K$11)>0,H178,G178)&$K$11,"PrevPrice") ->  | M178: =_xll.ESQuote($I$11&" "&IF(LEN($K$11)>0,H178,G178)&$K$11,"DTE") ->  | Q178: 2026-08-01 | R178: Q | S178: Q26 | T178: Q2026 | U178: =_xll.ESHistD($I$11&" "&$T178&$K$11,"Last","D",$Q$11) ->  | W178: =VLOOKUP($I$11&" "&T178&$K$11,Terminations!expchains,2,FALSE)-$Q$11 -> 
C179: 165 | E179: 2027-03-01 | F179: H | G179: H27 | H179: 27H | I179: =_xll.ESQuote($I$11&" "&IF(LEN($K$11)>0,H179,G179)&$K$11,"Recent") ->  | K179: =_xll.ESQuote($I$11&" "&IF(LEN($K$11)>0,H179,G179)&$K$11,"PrevPrice") ->  | M179: =_xll.ESQuote($I$11&" "&IF(LEN($K$11)>0,H179,G179)&$K$11,"DTE") ->  | Q179: 2026-09-01 | R179: U | S179: U26 | T179: U2026 | U179: =_xll.ESHistD($I$11&" "&$T179&$K$11,"Last","D",$Q$11) ->  | W179: =VLOOKUP($I$11&" "&T179&$K$11,Terminations!expchains,2,FALSE)-$Q$11 -> 
C180: 166 | E180: 2027-04-01 | F180: J | G180: J27 | H180: 27J | I180: =_xll.ESQuote($I$11&" "&IF(LEN($K$11)>0,H180,G180)&$K$11,"Recent") ->  | K180: =_xll.ESQuote($I$11&" "&IF(LEN($K$11)>0,H180,G180)&$K$11,"PrevPrice") ->  | M180: =_xll.ESQuote($I$11&" "&IF(LEN($K$11)>0,H180,G180)&$K$11,"DTE") ->  | Q180: 2026-10-01 | R180: V | S180: V26 | T180: V2026 | U180: =_xll.ESHistD($I$11&" "&$T180&$K$11,"Last","D",$Q$11) ->  | W180: =VLOOKUP($I$11&" "&T180&$K$11,Terminations!expchains,2,FALSE)-$Q$11 -> 
C181: 167 | E181: 2027-05-01 | F181: K | G181: K27 | H181: 27K | I181: =_xll.ESQuote($I$11&" "&IF(LEN($K$11)>0,H181,G181)&$K$11,"Recent") ->  | K181: =_xll.ESQuote($I$11&" "&IF(LEN($K$11)>0,H181,G181)&$K$11,"PrevPrice") ->  | M181: =_xll.ESQuote($I$11&" "&IF(LEN($K$11)>0,H181,G181)&$K$11,"DTE") ->  | Q181: 2026-11-01 | R181: X | S181: X26 | T181: X2026 | U181: =_xll.ESHistD($I$11&" "&$T181&$K$11,"Last","D",$Q$11) ->  | W181: =VLOOKUP($I$11&" "&T181&$K$11,Terminations!expchains,2,FALSE)-$Q$11 -> 
C182: 168 | E182: 2027-06-01 | F182: M | G182: M27 | H182: 27M | I182: =_xll.ESQuote($I$11&" "&IF(LEN($K$11)>0,H182,G182)&$K$11,"Recent") ->  | K182: =_xll.ESQuote($I$11&" "&IF(LEN($K$11)>0,H182,G182)&$K$11,"PrevPrice") ->  | M182: =_xll.ESQuote($I$11&" "&IF(LEN($K$11)>0,H182,G182)&$K$11,"DTE") ->  | Q182: 2026-12-01 | R182: Z | S182: Z26 | T182: Z2026 | U182: =_xll.ESHistD($I$11&" "&$T182&$K$11,"Last","D",$Q$11) ->  | W182: =VLOOKUP($I$11&" "&T182&$K$11,Terminations!expchains,2,FALSE)-$Q$11 -> 
C183: 169 | E183: 2027-07-01 | F183: N | G183: N27 | H183: 27N | I183: =_xll.ESQuote($I$11&" "&IF(LEN($K$11)>0,H183,G183)&$K$11,"Recent") ->  | K183: =_xll.ESQuote($I$11&" "&IF(LEN($K$11)>0,H183,G183)&$K$11,"PrevPrice") ->  | M183: =_xll.ESQuote($I$11&" "&IF(LEN($K$11)>0,H183,G183)&$K$11,"DTE") ->  | Q183: 2027-01-01 | R183: F | S183: F27 | T183: F2027 | U183: =_xll.ESHistD($I$11&" "&$T183&$K$11,"Last","D",$Q$11) ->  | W183: =VLOOKUP($I$11&" "&T183&$K$11,Terminations!expchains,2,FALSE)-$Q$11 -> 
C184: 170 | E184: 2027-08-01 | F184: Q | G184: Q27 | H184: 27Q | I184: =_xll.ESQuote($I$11&" "&IF(LEN($K$11)>0,H184,G184)&$K$11,"Recent") ->  | K184: =_xll.ESQuote($I$11&" "&IF(LEN($K$11)>0,H184,G184)&$K$11,"PrevPrice") ->  | M184: =_xll.ESQuote($I$11&" "&IF(LEN($K$11)>0,H184,G184)&$K$11,"DTE") ->  | Q184: 2027-02-01 | R184: G | S184: G27 | T184: G2027 | U184: =_xll.ESHistD($I$11&" "&$T184&$K$11,"Last","D",$Q$11) ->  | W184: =VLOOKUP($I$11&" "&T184&$K$11,Terminations!expchains,2,FALSE)-$Q$11 -> 
C185: 171 | E185: 2027-09-01 | F185: U | G185: U27 | H185: 27U | I185: =_xll.ESQuote($I$11&" "&IF(LEN($K$11)>0,H185,G185)&$K$11,"Recent") ->  | K185: =_xll.ESQuote($I$11&" "&IF(LEN($K$11)>0,H185,G185)&$K$11,"PrevPrice") ->  | M185: =_xll.ESQuote($I$11&" "&IF(LEN($K$11)>0,H185,G185)&$K$11,"DTE") ->  | Q185: 2027-03-01 | R185: H | S185: H27 | T185: H2027 | U185: =_xll.ESHistD($I$11&" "&$T185&$K$11,"Last","D",$Q$11) ->  | W185: =VLOOKUP($I$11&" "&T185&$K$11,Terminations!expchains,2,FALSE)-$Q$11 -> 
C186: 172 | E186: 2027-10-01 | F186: V | G186: V27 | H186: 27V | I186: =_xll.ESQuote($I$11&" "&IF(LEN($K$11)>0,H186,G186)&$K$11,"Recent") ->  | K186: =_xll.ESQuote($I$11&" "&IF(LEN($K$11)>0,H186,G186)&$K$11,"PrevPrice") ->  | M186: =_xll.ESQuote($I$11&" "&IF(LEN($K$11)>0,H186,G186)&$K$11,"DTE") ->  | Q186: 2027-04-01 | R186: J | S186: J27 | T186: J2027 | U186: =_xll.ESHistD($I$11&" "&$T186&$K$11,"Last","D",$Q$11) ->  | W186: =VLOOKUP($I$11&" "&T186&$K$11,Terminations!expchains,2,FALSE)-$Q$11 -> 
C187: 173 | E187: 2027-11-01 | F187: X | G187: X27 | H187: 27X | I187: =_xll.ESQuote($I$11&" "&IF(LEN($K$11)>0,H187,G187)&$K$11,"Recent") ->  | K187: =_xll.ESQuote($I$11&" "&IF(LEN($K$11)>0,H187,G187)&$K$11,"PrevPrice") ->  | M187: =_xll.ESQuote($I$11&" "&IF(LEN($K$11)>0,H187,G187)&$K$11,"DTE") ->  | Q187: 2027-05-01 | R187: K | S187: K27 | T187: K2027 | U187: =_xll.ESHistD($I$11&" "&$T187&$K$11,"Last","D",$Q$11) ->  | W187: =VLOOKUP($I$11&" "&T187&$K$11,Terminations!expchains,2,FALSE)-$Q$11 -> 
C188: 174 | E188: 2027-12-01 | F188: Z | G188: Z27 | H188: 27Z | I188: =_xll.ESQuote($I$11&" "&IF(LEN($K$11)>0,H188,G188)&$K$11,"Recent") ->  | K188: =_xll.ESQuote($I$11&" "&IF(LEN($K$11)>0,H188,G188)&$K$11,"PrevPrice") ->  | M188: =_xll.ESQuote($I$11&" "&IF(LEN($K$11)>0,H188,G188)&$K$11,"DTE") ->  | Q188: 2027-06-01 | R188: M | S188: M27 | T188: M2027 | U188: =_xll.ESHistD($I$11&" "&$T188&$K$11,"Last","D",$Q$11) ->  | W188: =VLOOKUP($I$11&" "&T188&$K$11,Terminations!expchains,2,FALSE)-$Q$11 -> 
C189: 175 | E189: 2028-01-01 | F189: F | G189: F28 | H189: 28F | I189: =_xll.ESQuote($I$11&" "&IF(LEN($K$11)>0,H189,G189)&$K$11,"Recent") ->  | K189: =_xll.ESQuote($I$11&" "&IF(LEN($K$11)>0,H189,G189)&$K$11,"PrevPrice") ->  | M189: =_xll.ESQuote($I$11&" "&IF(LEN($K$11)>0,H189,G189)&$K$11,"DTE") ->  | Q189: 2027-07-01 | R189: N | S189: N27 | T189: N2027 | U189: =_xll.ESHistD($I$11&" "&$T189&$K$11,"Last","D",$Q$11) ->  | W189: =VLOOKUP($I$11&" "&T189&$K$11,Terminations!expchains,2,FALSE)-$Q$11 -> 
C190: 176 | E190: 2028-02-01 | F190: G | G190: G28 | H190: 28G | I190: =_xll.ESQuote($I$11&" "&IF(LEN($K$11)>0,H190,G190)&$K$11,"Recent") ->  | K190: =_xll.ESQuote($I$11&" "&IF(LEN($K$11)>0,H190,G190)&$K$11,"PrevPrice") ->  | M190: =_xll.ESQuote($I$11&" "&IF(LEN($K$11)>0,H190,G190)&$K$11,"DTE") ->  | Q190: 2027-08-01 | R190: Q | S190: Q27 | T190: Q2027 | U190: =_xll.ESHistD($I$11&" "&$T190&$K$11,"Last","D",$Q$11) ->  | W190: =VLOOKUP($I$11&" "&T190&$K$11,Terminations!expchains,2,FALSE)-$Q$11 -> 
C191: 177 | E191: 2028-03-01 | F191: H | G191: H28 | H191: 28H | I191: =_xll.ESQuote($I$11&" "&IF(LEN($K$11)>0,H191,G191)&$K$11,"Recent") ->  | K191: =_xll.ESQuote($I$11&" "&IF(LEN($K$11)>0,H191,G191)&$K$11,"PrevPrice") ->  | M191: =_xll.ESQuote($I$11&" "&IF(LEN($K$11)>0,H191,G191)&$K$11,"DTE") ->  | Q191: 2027-09-01 | R191: U | S191: U27 | T191: U2027 | U191: =_xll.ESHistD($I$11&" "&$T191&$K$11,"Last","D",$Q$11) ->  | W191: =VLOOKUP($I$11&" "&T191&$K$11,Terminations!expchains,2,FALSE)-$Q$11 -> 
C192: 178 | E192: 2028-04-01 | F192: J | G192: J28 | H192: 28J | I192: =_xll.ESQuote($I$11&" "&IF(LEN($K$11)>0,H192,G192)&$K$11,"Recent") ->  | K192: =_xll.ESQuote($I$11&" "&IF(LEN($K$11)>0,H192,G192)&$K$11,"PrevPrice") ->  | M192: =_xll.ESQuote($I$11&" "&IF(LEN($K$11)>0,H192,G192)&$K$11,"DTE") ->  | Q192: 2027-10-01 | R192: V | S192: V27 | T192: V2027 | U192: =_xll.ESHistD($I$11&" "&$T192&$K$11,"Last","D",$Q$11) ->  | W192: =VLOOKUP($I$11&" "&T192&$K$11,Terminations!expchains,2,FALSE)-$Q$11 -> 
C193: 179 | E193: 2028-05-01 | F193: K | G193: K28 | H193: 28K | I193: =_xll.ESQuote($I$11&" "&IF(LEN($K$11)>0,H193,G193)&$K$11,"Recent") ->  | K193: =_xll.ESQuote($I$11&" "&IF(LEN($K$11)>0,H193,G193)&$K$11,"PrevPrice") ->  | M193: =_xll.ESQuote($I$11&" "&IF(LEN($K$11)>0,H193,G193)&$K$11,"DTE") ->  | Q193: 2027-11-01 | R193: X | S193: X27 | T193: X2027 | U193: =_xll.ESHistD($I$11&" "&$T193&$K$11,"Last","D",$Q$11) ->  | W193: =VLOOKUP($I$11&" "&T193&$K$11,Terminations!expchains,2,FALSE)-$Q$11 -> 
C194: 180 | E194: 2028-06-01 | F194: M | G194: M28 | H194: 28M | I194: =_xll.ESQuote($I$11&" "&IF(LEN($K$11)>0,H194,G194)&$K$11,"Recent") ->  | K194: =_xll.ESQuote($I$11&" "&IF(LEN($K$11)>0,H194,G194)&$K$11,"PrevPrice") ->  | M194: =_xll.ESQuote($I$11&" "&IF(LEN($K$11)>0,H194,G194)&$K$11,"DTE") ->  | Q194: 2027-12-01 | R194: Z | S194: Z27 | T194: Z2027 | U194: =_xll.ESHistD($I$11&" "&$T194&$K$11,"Last","D",$Q$11) ->  | W194: =VLOOKUP($I$11&" "&T194&$K$11,Terminations!expchains,2,FALSE)-$Q$11 -> 
C195: 181 | E195: 2028-07-01 | F195: N | G195: N28 | H195: 28N | I195: =_xll.ESQuote($I$11&" "&IF(LEN($K$11)>0,H195,G195)&$K$11,"Recent") ->  | K195: =_xll.ESQuote($I$11&" "&IF(LEN($K$11)>0,H195,G195)&$K$11,"PrevPrice") ->  | M195: =_xll.ESQuote($I$11&" "&IF(LEN($K$11)>0,H195,G195)&$K$11,"DTE") ->  | Q195: 2028-01-01 | R195: F | S195: F28 | T195: F2028 | U195: =_xll.ESHistD($I$11&" "&$T195&$K$11,"Last","D",$Q$11) ->  | W195: =VLOOKUP($I$11&" "&T195&$K$11,Terminations!expchains,2,FALSE)-$Q$11 -> 
C196: 182 | E196: 2028-08-01 | F196: Q | G196: Q28 | H196: 28Q | I196: =_xll.ESQuote($I$11&" "&IF(LEN($K$11)>0,H196,G196)&$K$11,"Recent") ->  | K196: =_xll.ESQuote($I$11&" "&IF(LEN($K$11)>0,H196,G196)&$K$11,"PrevPrice") ->  | M196: =_xll.ESQuote($I$11&" "&IF(LEN($K$11)>0,H196,G196)&$K$11,"DTE") ->  | Q196: 2028-02-01 | R196: G | S196: G28 | T196: G2028 | U196: =_xll.ESHistD($I$11&" "&$T196&$K$11,"Last","D",$Q$11) ->  | W196: =VLOOKUP($I$11&" "&T196&$K$11,Terminations!expchains,2,FALSE)-$Q$11 -> 
C197: 183 | E197: 2028-09-01 | F197: U | G197: U28 | H197: 28U | I197: =_xll.ESQuote($I$11&" "&IF(LEN($K$11)>0,H197,G197)&$K$11,"Recent") ->  | K197: =_xll.ESQuote($I$11&" "&IF(LEN($K$11)>0,H197,G197)&$K$11,"PrevPrice") ->  | M197: =_xll.ESQuote($I$11&" "&IF(LEN($K$11)>0,H197,G197)&$K$11,"DTE") ->  | Q197: 2028-03-01 | R197: H | S197: H28 | T197: H2028 | U197: =_xll.ESHistD($I$11&" "&$T197&$K$11,"Last","D",$Q$11) ->  | W197: =VLOOKUP($I$11&" "&T197&$K$11,Terminations!expchains,2,FALSE)-$Q$11 -> 
C198: 184 | E198: 2028-10-01 | F198: V | G198: V28 | H198: 28V | I198: =_xll.ESQuote($I$11&" "&IF(LEN($K$11)>0,H198,G198)&$K$11,"Recent") ->  | K198: =_xll.ESQuote($I$11&" "&IF(LEN($K$11)>0,H198,G198)&$K$11,"PrevPrice") ->  | M198: =_xll.ESQuote($I$11&" "&IF(LEN($K$11)>0,H198,G198)&$K$11,"DTE") ->  | Q198: 2028-04-01 | R198: J | S198: J28 | T198: J2028 | U198: =_xll.ESHistD($I$11&" "&$T198&$K$11,"Last","D",$Q$11) ->  | W198: =VLOOKUP($I$11&" "&T198&$K$11,Terminations!expchains,2,FALSE)-$Q$11 -> 
C199: 185 | E199: 2028-11-01 | F199: X | G199: X28 | H199: 28X | I199: =_xll.ESQuote($I$11&" "&IF(LEN($K$11)>0,H199,G199)&$K$11,"Recent") ->  | K199: =_xll.ESQuote($I$11&" "&IF(LEN($K$11)>0,H199,G199)&$K$11,"PrevPrice") ->  | M199: =_xll.ESQuote($I$11&" "&IF(LEN($K$11)>0,H199,G199)&$K$11,"DTE") ->  | Q199: 2028-05-01 | R199: K | S199: K28 | T199: K2028 | U199: =_xll.ESHistD($I$11&" "&$T199&$K$11,"Last","D",$Q$11) ->  | W199: =VLOOKUP($I$11&" "&T199&$K$11,Terminations!expchains,2,FALSE)-$Q$11 -> 
C200: 186 | E200: 2028-12-01 | F200: Z | G200: Z28 | H200: 28Z | I200: =_xll.ESQuote($I$11&" "&IF(LEN($K$11)>0,H200,G200)&$K$11,"Recent") ->  | K200: =_xll.ESQuote($I$11&" "&IF(LEN($K$11)>0,H200,G200)&$K$11,"PrevPrice") ->  | M200: =_xll.ESQuote($I$11&" "&IF(LEN($K$11)>0,H200,G200)&$K$11,"DTE") ->  | Q200: 2028-06-01 | R200: M | S200: M28 | T200: M2028 | U200: =_xll.ESHistD($I$11&" "&$T200&$K$11,"Last","D",$Q$11) ->  | W200: =VLOOKUP($I$11&" "&T200&$K$11,Terminations!expchains,2,FALSE)-$Q$11 -> 
C201: 187 | E201: 2029-01-01 | F201: F | G201: F29 | H201: 29F | I201: =_xll.ESQuote($I$11&" "&IF(LEN($K$11)>0,H201,G201)&$K$11,"Recent") ->  | K201: =_xll.ESQuote($I$11&" "&IF(LEN($K$11)>0,H201,G201)&$K$11,"PrevPrice") ->  | M201: =_xll.ESQuote($I$11&" "&IF(LEN($K$11)>0,H201,G201)&$K$11,"DTE") ->  | Q201: 2028-07-01 | R201: N | S201: N28 | T201: N2028 | U201: =_xll.ESHistD($I$11&" "&$T201&$K$11,"Last","D",$Q$11) ->  | W201: =VLOOKUP($I$11&" "&T201&$K$11,Terminations!expchains,2,FALSE)-$Q$11 -> 
C202: 188 | E202: 2029-02-01 | F202: G | G202: G29 | H202: 29G | I202: =_xll.ESQuote($I$11&" "&IF(LEN($K$11)>0,H202,G202)&$K$11,"Recent") ->  | K202: =_xll.ESQuote($I$11&" "&IF(LEN($K$11)>0,H202,G202)&$K$11,"PrevPrice") ->  | M202: =_xll.ESQuote($I$11&" "&IF(LEN($K$11)>0,H202,G202)&$K$11,"DTE") ->  | Q202: 2028-08-01 | R202: Q | S202: Q28 | T202: Q2028 | U202: =_xll.ESHistD($I$11&" "&$T202&$K$11,"Last","D",$Q$11) ->  | W202: =VLOOKUP($I$11&" "&T202&$K$11,Terminations!expchains,2,FALSE)-$Q$11 -> 
C203: 189 | E203: 2029-03-01 | F203: H | G203: H29 | H203: 29H | I203: =_xll.ESQuote($I$11&" "&IF(LEN($K$11)>0,H203,G203)&$K$11,"Recent") ->  | K203: =_xll.ESQuote($I$11&" "&IF(LEN($K$11)>0,H203,G203)&$K$11,"PrevPrice") ->  | M203: =_xll.ESQuote($I$11&" "&IF(LEN($K$11)>0,H203,G203)&$K$11,"DTE") ->  | Q203: 2028-09-01 | R203: U | S203: U28 | T203: U2028 | U203: =_xll.ESHistD($I$11&" "&$T203&$K$11,"Last","D",$Q$11) ->  | W203: =VLOOKUP($I$11&" "&T203&$K$11,Terminations!expchains,2,FALSE)-$Q$11 -> 
C204: 190 | E204: 2029-04-01 | F204: J | G204: J29 | H204: 29J | I204: =_xll.ESQuote($I$11&" "&IF(LEN($K$11)>0,H204,G204)&$K$11,"Recent") ->  | K204: =_xll.ESQuote($I$11&" "&IF(LEN($K$11)>0,H204,G204)&$K$11,"PrevPrice") ->  | M204: =_xll.ESQuote($I$11&" "&IF(LEN($K$11)>0,H204,G204)&$K$11,"DTE") ->  | Q204: 2028-10-01 | R204: V | S204: V28 | T204: V2028 | U204: =_xll.ESHistD($I$11&" "&$T204&$K$11,"Last","D",$Q$11) ->  | W204: =VLOOKUP($I$11&" "&T204&$K$11,Terminations!expchains,2,FALSE)-$Q$11 -> 
C205: 191 | E205: 2029-05-01 | F205: K | G205: K29 | H205: 29K | I205: =_xll.ESQuote($I$11&" "&IF(LEN($K$11)>0,H205,G205)&$K$11,"Recent") ->  | K205: =_xll.ESQuote($I$11&" "&IF(LEN($K$11)>0,H205,G205)&$K$11,"PrevPrice") ->  | M205: =_xll.ESQuote($I$11&" "&IF(LEN($K$11)>0,H205,G205)&$K$11,"DTE") ->  | Q205: 2028-11-01 | R205: X | S205: X28 | T205: X2028 | U205: =_xll.ESHistD($I$11&" "&$T205&$K$11,"Last","D",$Q$11) ->  | W205: =VLOOKUP($I$11&" "&T205&$K$11,Terminations!expchains,2,FALSE)-$Q$11 -> 
C206: 192 | E206: 2029-06-01 | F206: M | G206: M29 | H206: 29M | I206: =_xll.ESQuote($I$11&" "&IF(LEN($K$11)>0,H206,G206)&$K$11,"Recent") ->  | K206: =_xll.ESQuote($I$11&" "&IF(LEN($K$11)>0,H206,G206)&$K$11,"PrevPrice") ->  | M206: =_xll.ESQuote($I$11&" "&IF(LEN($K$11)>0,H206,G206)&$K$11,"DTE") ->  | Q206: =DATE(YEAR($Q$11),MONTH($Q$11)+$C206,1) -> 2028-12-01 | R206: Z | S206: Z28 | T206: =IF(LEN($K$11)>0,YEAR(Q206)&R206,R206&YEAR(Q206)) -> Z2028 | U206: =_xll.ESHistD($I$11&" "&$T206&$K$11,"Last","D",$Q$11) ->  | W206: =VLOOKUP($I$11&" "&T206&$K$11,Terminations!expchains,2,FALSE)-$Q$11 -> 
C207: 193 | E207: =DATE(YEAR($E$11),MONTH($E$11)+$C207,1) -> 2029-07-01 | F207: =RIGHT(LEFT("FGHJKMNQUVXZ",MONTH(E207)),1) -> N | G207: =F207&RIGHT(YEAR(E207),IF(YEAR(E207)<2018,1,2)) -> N29 | H207: =RIGHT(G207,LEN(G207)-1)&F207 -> 29N | I207: =_xll.ESQuote($I$11&" "&IF(LEN($K$11)>0,H207,G207)&$K$11,"Recent") ->  | J207: =IF(ISNUMBER(I207),I207,NA()) ->  | K207: =_xll.ESQuote($I$11&" "&IF(LEN($K$11)>0,H207,G207)&$K$11,"PrevPrice") ->  | L207: =IF(ISNUMBER(K207),K207,NA()) ->  | M207: =_xll.ESQuote($I$11&" "&IF(LEN($K$11)>0,H207,G207)&$K$11,"DTE") ->  | N207: =IF(ISNUMBER(M207),M207,NA()) ->  | O207: =IF(AND(ISNUMBER(J207),N207>0),N207/30.5,NA()) ->  | Q207: 2029-01-01 | R207: =RIGHT(LEFT("FGHJKMNQUVXZ",MONTH(Q207)),1) -> F | S207: =R207&RIGHT(YEAR(Q207),IF(YEAR(Q207)<2018,1,2)) -> F29 | T207: F2029 | U207: =_xll.ESHistD($I$11&" "&$T207&$K$11,"Last","D",$Q$11) ->  | V207: =IF(ISNUMBER(U207),U207,NA()) ->  | W207: =VLOOKUP($I$11&" "&T207&$K$11,Terminations!expchains,2,FALSE)-$Q$11 ->  | X207: =IF(AND(ISNUMBER(V207),W207>0),W207/30.5,NA()) -> 
C208: 194 | E208: 2029-08-01 | F208: Q | G208: Q29 | H208: 29Q | I208: =_xll.ESQuote($I$11&" "&IF(LEN($K$11)>0,H208,G208)&$K$11,"Recent") ->  | K208: =_xll.ESQuote($I$11&" "&IF(LEN($K$11)>0,H208,G208)&$K$11,"PrevPrice") ->  | M208: =_xll.ESQuote($I$11&" "&IF(LEN($K$11)>0,H208,G208)&$K$11,"DTE") ->  | Q208: 2029-02-01 | R208: G | S208: G29 | T208: G2029 | U208: =_xll.ESHistD($I$11&" "&$T208&$K$11,"Last","D",$Q$11) ->  | W208: =VLOOKUP($I$11&" "&T208&$K$11,Terminations!expchains,2,FALSE)-$Q$11 -> 
... 14 more rows

Sheet Terminations
C5: Futures Expiration Dates (from http://fs1.dbc.com/expchains.tab)
C7: ©2013 Interactive Data Corporation. All Rights Reserved.
C10: Contract | D10: Termination
C11: 0A 2013J01 | D11: 2013-04-01
C12: 0A 2013J01=1 | D12: 2013-04-01
C13: 0A 2013J02 | D13: 2013-04-02
C14: 0A 2013J02=1 | D14: 2013-04-02
C15: 0A 2013J03 | D15: 2013-04-03
C16: 0A 2013J03=1 | D16: 2013-04-03
C17: 0A 2013J04 | D17: 2013-04-04
C18: 0A 2013J04=1 | D18: 2013-04-04
C19: 0A 2013J05 | D19: 2013-04-05
C20: 0A 2013J05=1 | D20: 2013-04-05
C21: 0A 2013J08 | D21: 2013-04-08
C22: 0A 2013J08=1 | D22: 2013-04-08
C23: 0A 2013J09 | D23: 2013-04-09
C24: 0A 2013J09=1 | D24: 2013-04-09
C25: 0A 2013J10 | D25: 2013-04-10
C26: 0A 2013J10=1 | D26: 2013-04-10
C27: 0A 2013J11 | D27: 2013-04-11
C28: 0A 2013J11=1 | D28: 2013-04-11
C29: 0A 2013J12 | D29: 2013-04-12
C30: 0A 2013J12=1 | D30: 2013-04-12
C31: 0A 2013J15 | D31: 2013-04-15
C32: 0A 2013J15=1 | D32: 2013-04-15
C33: 0A 2013J16 | D33: 2013-04-16
C34: 0A 2013J16=1 | D34: 2013-04-16
C35: 0A 2013J17 | D35: 2013-04-17
C36: 0A 2013J17=1 | D36: 2013-04-17
C37: 0A 2013J18 | D37: 2013-04-18
C38: 0A 2013J18=1 | D38: 2013-04-18
C39: 0A 2013J19 | D39: 2013-04-19
C40: 0A 2013J19=1 | D40: 2013-04-19
C41: 0A 2013J22 | D41: 2013-04-22
C42: 0A 2013J22=1 | D42: 2013-04-22
C43: 0A 2013J23 | D43: 2013-04-23
C44: 0A 2013J23=1 | D44: 2013-04-23
C45: 0A 2013J24 | D45: 2013-04-24
C46: 0A 2013J24=1 | D46: 2013-04-24
C47: 0A 2013J25 | D47: 2013-04-25
C48: 0A 2013J25=1 | D48: 2013-04-25
C49: 0A 2013J26 | D49: 2013-04-26
C50: 0A 2013J26=1 | D50: 2013-04-26
C51: 0A 2013J29 | D51: 2013-04-29
C52: 0A 2013J29=1 | D52: 2013-04-29
C53: 0A 2013J30 | D53: 2013-04-30
C54: 0A 2013J30=1 | D54: 2013-04-30
C55: 0B F2013 | D55: 2013-02-07
C56: 0B G2013 | D56: 2013-03-07
C57: 0B H2013 | D57: 2013-04-05
C58: 0B J2013 | D58: 2013-05-07
C59: 0B J2013=1 | D59: 2013-05-01
C60: 0B J2013=2 | D60: 2013-04-30
C61: 0B K2013 | D61: 2013-06-07
C62: 0B K2013=1 | D62: 2013-06-01
C63: 0B M2012 | D63: 2012-06-29
C64: 0B M2013 | D64: 2013-07-08
C65: 0B M2013=2 | D65: 2013-06-28
C66: 0B N2012 | D66: 2012-07-31
C67: 0B N2013 | D67: 2013-08-07
C68: 0B N2013=2 | D68: 2013-07-31
C69: 0B Q2011 | D69: 2011-08-31
C70: 0B Q2012 | D70: 2012-08-31
C71: 0B Q2013 | D71: 2013-09-09
C72: 0B Q2013=2 | D72: 2013-08-30
C73: 0B U2011 | D73: 2011-09-30
C74: 0B U2012 | D74: 2012-09-28
C75: 0B U2013 | D75: 2013-10-07
C76: 0B U2013=2 | D76: 2013-09-30
C77: 0B V2011 | D77: 2011-10-31
C78: 0B X2011 | D78: 2011-11-30
C79: 0B Z2011 | D79: 2011-12-30
C80: 0C 2013J01 | D80: 2013-04-01
C81: 0C 2013J01=1 | D81: 2013-04-01
C82: 0C 2013J02 | D82: 2013-04-02
C83: 0C 2013J02=1 | D83: 2013-04-02
C84: 0C 2013J02=2 | D84: 2013-04-02
C85: 0C 2013J03 | D85: 2013-04-03
C86: 0C 2013J03=1 | D86: 2013-04-03
C87: 0C 2013J04 | D87: 2013-04-04
C88: 0C 2013J04=1 | D88: 2013-04-04
C89: 0C 2013J05 | D89: 2013-04-05
C90: 0C 2013J05=1 | D90: 2013-04-05
C91: 0C 2013J08 | D91: 2013-04-08
C92: 0C 2013J08=1 | D92: 2013-04-08
C93: 0C 2013J09 | D93: 2013-04-09
C94: 0C 2013J09=1 | D94: 2013-04-09
C95: 0C 2013J10 | D95: 2013-04-10
C96: 0C 2013J10=1 | D96: 2013-04-10
C97: 0C 2013J11 | D97: 2013-04-11
C98: 0C 2013J11=1 | D98: 2013-04-11
C99: 0C 2013J12 | D99: 2013-04-12
C100: 0C 2013J12=1 | D100: 2013-04-12
C101: 0C 2013J15 | D101: 2013-04-15
C102: 0C 2013J15=1 | D102: 2013-04-15
C103: 0C 2013J16 | D103: 2013-04-16
C104: 0C 2013J16=1 | D104: 2013-04-16
C105: 0C 2013J17 | D105: 2013-04-17
C106: 0C 2013J17=1 | D106: 2013-04-17
C107: 0C 2013J18 | D107: 2013-04-18
C108: 0C 2013J18=1 | D108: 2013-04-18
C109: 0C 2013J19 | D109: 2013-04-19
C110: 0C 2013J19=1 | D110: 2013-04-19
C111: 0C 2013J22 | D111: 2013-04-22
C112: 0C 2013J22=1 | D112: 2013-04-22
C113: 0C 2013J23 | D113: 2013-04-23
C114: 0C 2013J23=1 | D114: 2013-04-23
C115: 0C 2013J24 | D115: 2013-04-24
C116: 0C 2013J24=1 | D116: 2013-04-24
C117: 0C 2013J25 | D117: 2013-04-25
C118: 0C 2013J25=1 | D118: 2013-04-25
C119: 0C 2013J26 | D119: 2013-04-26
C120: 0C 2013J26=1 | D120: 2013-04-26
C121: 0C 2013J29 | D121: 2013-04-29
C122: 0C 2013J29=1 | D122: 2013-04-29
C123: 0C 2013J30 | D123: 2013-04-30
C124: 0C 2013J30=1 | D124: 2013-04-30
C125: 0C 2013K01 | D125: 2013-05-01
C126: 0C 2013K01=1 | D126: 2013-05-01
C127: 0C 2013K02 | D127: 2013-05-02
C128: 0C 2013K02=1 | D128: 2013-05-02
C129: 0C 2013K03 | D129: 2013-05-03
C130: 0C 2013K03=1 | D130: 2013-05-03
C131: 0C 2013K07 | D131: 2013-05-07
C132: 0C 2013K07=1 | D132: 2013-05-07
C133: 0C 2013K08 | D133: 2013-05-08
C134: 0C 2013K08=1 | D134: 2013-05-08
C135: 0C 2013K09 | D135: 2013-05-09
C136: 0C 2013K09=1 | D136: 2013-05-09
C137: 0C 2013K10 | D137: 2013-05-10
C138: 0C 2013K10=1 | D138: 2013-05-10
C139: 0C 2013K13 | D139: 2013-05-13
C140: 0C 2013K13=1 | D140: 2013-05-13
C141: 0C 2013K14 | D141: 2013-05-14
C142: 0C 2013K14=1 | D142: 2013-05-14
C143: 0C 2013K15 | D143: 2013-05-15
C144: 0C 2013K15=1 | D144: 2013-05-15
C145: 0C 2013K16 | D145: 2013-05-16
C146: 0C 2013K16=1 | D146: 2013-05-16
C147: 0C 2013K17 | D147: 2013-05-17
C148: 0C 2013K17=1 | D148: 2013-05-17
C149: 0C 2013K20 | D149: 2013-05-20
C150: 0C 2013K20=1 | D150: 2013-05-20
C151: 0C 2013K21 | D151: 2013-05-21
C152: 0C 2013K21=1 | D152: 2013-05-21
C153: 0C 2013K22 | D153: 2013-05-22
C154: 0C 2013K22=1 | D154: 2013-05-22
C155: 0C 2013K23 | D155: 2013-05-23
C156: 0C 2013K23=1 | D156: 2013-05-23
C157: 0C 2013K24 | D157: 2013-05-24
C158: 0C 2013K24=1 | D158: 2013-05-24
C159: 0C 2013K28 | D159: 2013-05-28
C160: 0C 2013K28=1 | D160: 2013-05-28
C161: 0C 2013K29 | D161: 2013-05-29
C162: 0C 2013K29=1 | D162: 2013-05-29
C163: 0C 2013K30 | D163: 2013-05-30
C164: 0C 2013K30=1 | D164: 2013-05-30
C165: 0C 2013K31 | D165: 2013-05-31
C166: 0C 2013K31=1 | D166: 2013-05-31
C167: 0D F2011 | D167: 2011-01-31
C168: 0D F2012 | D168: 2012-01-31
C169: 0D F2013 | D169: 2013-02-07
C170: 0D F2014 | D170: 2014-02-07
C171: 0D F2016 | D171: 2016-02-05
C172: 0D G2011 | D172: 2011-02-28
C173: 0D G2012 | D173: 2012-02-29
C174: 0D G2013 | D174: 2013-03-07
C175: 0D G2014 | D175: 2014-03-10
C176: 0D G2016 | D176: 2016-03-07
C177: 0D H2011 | D177: 2011-03-31
C178: 0D H2012 | D178: 2012-03-30
C179: 0D H2013 | D179: 2013-04-05
C180: 0D H2014 | D180: 2014-04-07
C181: 0D H2016 | D181: 2016-04-07
C182: 0D J2011 | D182: 2011-04-29
C183: 0D J2012 | D183: 2012-04-30
C184: 0D J2013 | D184: 2013-05-07
C185: 0D J2014 | D185: 2014-05-07
C186: 0D J2016 | D186: 2016-05-06
C187: 0D K2011 | D187: 2011-05-31
C188: 0D K2012 | D188: 2012-05-31
C189: 0D K2013 | D189: 2013-06-07
C190: 0D K2014 | D190: 2014-06-06
C191: 0D K2016 | D191: 2016-06-07
C192: 0D M2011 | D192: 2011-06-30
C193: 0D M2012 | D193: 2012-06-29
C194: 0D M2013 | D194: 2013-07-08
C195: 0D M2014 | D195: 2014-07-08
C196: 0D M2016 | D196: 2016-07-08
C197: 0D N2011 | D197: 2011-07-29
C198: 0D N2012 | D198: 2012-07-31
C199: 0D N2013 | D199: 2013-08-07
C200: 0D N2014 | D200: 2014-08-07
C201: 0D N2016 | D201: 2016-08-05
C202: 0D Q2011 | D202: 2011-08-31
C203: 0D Q2012 | D203: 2012-08-31
C204: 0D Q2013 | D204: 2013-09-09
C205: 0D Q2014 | D205: 2014-09-08
C206: 0D Q2016 | D206: 2016-09-08
C207: 0D U2011 | D207: 2011-09-30
... 4293 more rows
